{"text_format":"1","workbook":"xlsx","n_sheets":25,"sheets":["Cover","Instructions","CIP Map Status","Dashboard","Template-CIPMap","TargetsTemplate","Copy-Obj","ObjTemplate","ResSheetSetup","C_graph_hidden","Copy-Targets","BK-Beneficiary","BK-ProgramProcesses","BK-Financing","BK-SupervisionMonitoringandCo","BK-Settings-Targets","RES-Beneficiary","RES-ProgramProcesses","Settings-Global","Settings-Results","Settings-Targets","Custom_Graph","cht-Testing","cht-Sample","cht-test"],"not_rendered":{"charts":0,"images":4,"macros":1,"external_links":1,"defined_names":0,"comments":3,"pivot_tables":0},"unopened":[],"bounds":{"document_bytes":16777216,"sheet_cells":100000,"rows_first":2000,"rows_last":500,"rows_between":2000,"halvings":0,"cell_chars":16384,"cell_head_chars":4096},"cells_cut":0,"cells_raw":0,"read":"whole","date_system":"1900"}

{"sheet":"Cover","index":0,"n_rows":12,"n_cols":3,"rows_kept":12,"cut":false,"hidden":false,"merged":[[8,0,8,16],[9,2,9,15]]}
[]
[]
[]
[]
[]
[]
[]
[]
["CIP Performance Dashboard v2.0"]
[null,null,"About this tool: The Health Policy Plus (HP+) project, funded by the U.S. Agency for International Development (USAID) with additional financial support from the United Nations Foundation, developed this CIP Performance Dashboard tool. The Performance Dashboard is an Excel-based tool that helps countries keep track of the progress they are making toward achieving overarching CIP goals, via the CIP Map, a visual representation of the status of key results that must be met to achieve goals. The color-coded performance assessment is informed by tracking the key performance indicators for each key result. This tool also allows users to dynamically graph multiple key performance indicators and present the results in a dashboard. "]
[]
[null,null,"Click on the button below to jump to your desired destination:"]

{"sheet":"Instructions","index":1,"n_rows":18,"n_cols":2,"rows_kept":18,"cut":false,"hidden":false,"merged":[]}
[]
[]
[]
[null,"How to use this tool: Prior to using this tool, stakeholders should develop a CIP map with key results and a priority results achievement chart that identifies the key performance indicators linked to each key result and associated annual targets. \n\nUsing this information, the CIP performance dashboard can be set up by entering the necessary information in the \"Settings\" tabs. Once the tool is set up, key performance indicator data can be entered on a periodic basis. All data should be entered in the green-colored cells. Optional fields, recommended in the case that data is known and/or applicable, are shown as yellow-colored cells. All corresponding white-colored cells will be automatically updated after users click on the buttons embedded within the tool’s “Settings” tabs."]
[]
[null,"Setting Up the Tool (Yellow Tabs)\n\n1. Settings - Global Tab:  This tab sets up the general parameters for the CIP map feature and is the foundation of the tool. Users should first enter the time period covered by the CIP, noting start and end years and quarters. Next, users should specify the thematic areas that build the CIP, enabling bodies involved in CIP execution, and the beneficiaries that the CIP aims to target. The last field in this tab displays the key result categories, which are the broad categories that encompass thematic areas: beneficiaries, beneficiary-facing program processes (usually demand generation; service delivery; supply chain or commodity security; and policy and advocacy), and foundational supportive thematic areas (typically monitoring and evaluation; governance and coordination; and finance). Users should list these categories in the order they wish them to appear in the tool’s CIP map. Beneficiary and program processes are set as cells B22 and B23, respectively, in the Settings - Global tab. They cannot be moved though they can be renamed. The remaining key results categories will be pre-populated in this section; however, users can customize them based on country context. "]
[]
[null,"2. Settings - Results Tab:  In this tab, users will enter key results per key result category along with the corresponding number of indicators per result that are necessary to achieve the CIP goal. Users should reference their priority results achievement chart for this information. Upon completion, they should click the \"Setup Result Sheets” button at the upper-right-hand corner of the sheet."]
[]
[null,"3. Settings - Targets Tab: Upon clicking the \"Setup Result Sheets\" button in Step 2 above, this tab will be pre-populated with the key result categories, key results, and spaces for the number of indicators assigned. Users are required to fill in the indicators that have been selected by stakeholders, indicator weighting, and respective annual targets. Optional fields, shown as yellow-colored cells, include indicator definition, corresponding activities, and data sources for key performance indicator data. Although optional, users are encouraged to enter information into these fields if available or applicable. Upon completion of this sheet, users should click “Update KPIs.” This will send the information to the relevant results tabs with key performance indicators and annual targets, and completes the set up process."]
[]
[null,"4. Custom Graph Tab: Key performance indicator progress can be graphed in this tab. Users can select the graph type (either bar or line) at the top, along with the option to graph key performance indicators against annual targets. Users can select the period of performance to view, name the graph, and select up to five indicators to display. Click the “Generate Graph” button to create the graph. Users can edit these graphs. Once the graph is complete, the “Add Graph to Dashboard” button will move it to the Dashboard tab. This step can be completed at any time during the monitoring process."]
[]
[null,"Enter the Performance Data (Blue Tabs)\n\n5. Result Tabs: Beneficiaries, program processes, and supportive thematic areas appear as separate tabs where key performance indicator data by quarter can be entered. Users should enter the data as frequently as possible. It is recommended that data is entered at least every six months to be able to assess progress. A color-coded assessment system categorizes the status of the priority result based on indicator performance as compared to set targets."]
[]
[null,"Review the Data with the CIP Map and Dashboard (Green Tabs)\n\n6. CIP Map Status Tab: The custom CIP map is located in this tab, and includes the key results grouped by the key result categories set up in Step 1. Users can select the period of performance to review. By clicking the \"Refresh Dashboard\" button at the top of the sheet, the color-coded performance assessment for each key result is updated. "]
[]
[null,"7. Dashboard Tab: This tab houses the custom graphs that have been developed in Step 4. Users can set up the custom graphs to include future periods in the dashboard. Once the generated custom graphs are included in this tab, they will automatically update as new key performance indicator data is entered into the CIP performance dashboard tool."]

{"sheet":"CIP Map Status","index":2,"n_rows":13,"n_cols":15,"rows_kept":13,"cut":false,"hidden":false,"merged":[[10,2,10,3],[10,4,10,5],[10,6,10,7],[10,8,10,9],[10,1,12,1],[4,1,4,9],[2,7,2,9],[0,1,0,3],[1,4,1,5],[2,4,2,5],[5,1,6,1],[8,2,8,9],[5,2,5,3],[5,4,5,5],[5,6,5,9],[6,6,6,9]]}
[null,"Select Period of Performance for review:"]
[null,null,null,"Year:",2019]
[null,null,null,"Quarter:","Jul-Sep",null,0]
[]
[]
[null,"Beneficiary","Women of Reproductive Age",null,"Youth",null,null,null,null,null,null,null,"Color Code","Condition Status","Variance from Target"]
[null,null,null,"Increase demand for and access to high-quality FP information and services",null,"Priority 2: Expand youth access to accurate and actionable information and family planning services, and promote youth rights to make their own fertility choices",null,null,null,null,null,null,null,"Met or Exceeded Target","≥ 100%"]
[null,null,null,null,null,null,null,null,null,null,null,null,null,"On Track","90% – 99.99%"]
[null,"Enabling Bodies:","Government     Private Sector     Donors     Community and Traditional Leaders     Health Providers     Implementing Partners     ",null,null,null,null,null,null,null,null,null,null,"Gaining Traction","70% – 89.99%"]
[null,null,null,null,null,null,null,null,null,null,null,null,null,"Building Momentum","50% - 69.99%"]
[null,"Program Processes","Demand Creation",null,"Service Delivery",null,"Contraceptive Security",null,"Policy and Enabling Environment",null,null,null,null,"Delayed","0% - 49.99%"]
[null,null,null,"Priority 1: Improve the ability of individuals within the population as a whole, as well as specific groups (e.g., adolescents, rural populations, urban poor) to achieve their fertility desires by providing accurate information about sexual and reproductive health, information on how fertility is linked to general health and well-being, and where and how to access desired services",null,"Priority 3: Ensure new and existing health care workers receive adquate practical training in the full FP method mix, and empower community health workers and frontline workers to provide counselling and referral services, as well as short-term methods",null,"Priority 5: Ensure commodity availability trhough strengthening logistics management systems and distribution of FP commodities",null,"Priority 4: Promote multisectoral coordination at the national and district levels, and integrate FP policy, information, and services across sectors",null,null,null,"None","No data; 0"]
[null,null,null,null,null,null,null,null,null,"Priority 6: Increase sustainability of family planning through government commitment, integration of the private sector, and diversification of funding sources for FP activities and commodities"]

{"sheet":"Dashboard","index":3,"n_rows":0,"n_cols":0,"rows_kept":0,"cut":false,"hidden":false,"merged":[]}

{"sheet":"Template-CIPMap","index":4,"n_rows":0,"n_cols":0,"rows_kept":0,"cut":false,"hidden":true,"merged":[]}

{"sheet":"TargetsTemplate","index":5,"n_rows":4,"n_cols":6,"rows_kept":4,"cut":false,"hidden":true,"merged":[[3,1,4,1],[3,2,4,2],[3,3,4,3],[3,4,4,4],[3,0,4,0]]}
[]
[]
[]
["Grouping","Objective","Indicator","Indicator - Definition","Activities","Target"]

{"sheet":"Copy-Obj","index":6,"n_rows":1,"n_cols":2,"rows_kept":1,"cut":false,"hidden":true,"merged":[[0,0,1,0],[0,1,1,2]]}
["Key Result","Key Performance Indicator"]

{"sheet":"ObjTemplate","index":7,"n_rows":35,"n_cols":23,"rows_kept":35,"cut":false,"hidden":true,"merged":[[3,1,3,2],[0,19,0,22],[0,0,1,0],[0,1,1,2],[0,3,0,6],[0,7,0,10],[0,11,0,14],[0,15,0,18]]}
["Key Result","Key Performance Indicator",null,2016,null,null,null,2017,null,null,null,2018,null,null,null,2019,null,null,null,2020]
[null,null,null,"Jan-Mar","Apr-Jun","Jul-Sep","Oct-Dec","Jan-Mar","Apr-Jun","Jul-Sep","Oct-Dec","Jan-Mar","Apr-Jun","Jul-Sep","Oct-Dec","Jan-Mar","Apr-Jun","Jul-Sep","Oct-Dec","Jan-Mar","Apr-Jun","Jul-Sep","Oct-Dec"]
["A","Condition Status:","NO DATA"]
[]
[]
[null,null,null,null,null,null,null,"DC 1—Access to accurate information about healthy \ntiming and spacing of  pregnancies is increased \n","DC 1—Access to accurate information about healthy \ntiming and spacing of  pregnancies is increased \n","DC 1—Access to accurate information about healthy \ntiming and spacing of  pregnancies is increased \n","DC 1—Access to accurate information about healthy \ntiming and spacing of  pregnancies is increased \n","DC 1—Access to accurate information about healthy \ntiming and spacing of  pregnancies is increased \n"]
[]
[null,null,null,null,null,null,null,"DC 2—Communities receive accurate information  about birth spacing and limiting family size through  contraceptive use\n","DC 2—Communities receive accurate information  about birth spacing and limiting family size through  contraceptive use\n","DC 2—Communities receive accurate information  about birth spacing and limiting family size through  contraceptive use\n","DC 2—Communities receive accurate information  about birth spacing and limiting family size through  contraceptive use\n","DC 2—Communities receive accurate information  about birth spacing and limiting family size through  contraceptive use\n"]
[]
[null,null,null,null,null,null,null,"DC 6—Young people feel empowered to access FP services ","DC 6—Young people feel empowered to access FP services ","DC 6—Young people feel empowered to access FP services ","DC 6—Young people feel empowered to access FP services ","DC 6—Young people feel empowered to access FP services "]
[]
[]
[null,null,null,null,null,null,null,"SDA 2—Access and use of FP services at health facilities \nand at the community level  is increased\n","SDA 2—Access and use of FP services at health facilities \nand at the community level  is increased\n","SDA 2—Access and use of FP services at health facilities \nand at the community level  is increased\n","SDA 2—Access and use of FP services at health facilities \nand at the community level  is increased\n","SDA 2—Access and use of FP services at health facilities \nand at the community level  is increased\n"]
[]
[]
[]
[null,null,null,null,null,null,null,"SDA 5—Public-private  partnerships for FP service provisions are implemented \n","SDA 5—Public-private  partnerships for FP service provisions are implemented \n","SDA 5—Public-private  partnerships for FP service provisions are implemented \n","SDA 5—Public-private  partnerships for FP service provisions are implemented \n","SDA 5—Public-private  partnerships for FP service provisions are implemented \n"]
[]
[]
[]
[null,null,null,null,null,null,null,"SDA 6—Access to family planning by young people is safe, rights-based, and confidential","SDA 6—Access to family planning by young people is safe, rights-based, and confidential","SDA 6—Access to family planning by young people is safe, rights-based, and confidential","SDA 6—Access to family planning by young people is safe, rights-based, and confidential","SDA 6—Access to family planning by young people is safe, rights-based, and confidential"]
[]
[]
[null,null,null,null,null,null,null,"CS 3—The LMIS and HMIS are improved","CS 3—The LMIS and HMIS are improved","CS 3—The LMIS and HMIS are improved","CS 3—The LMIS and HMIS are improved","CS 3—The LMIS and HMIS are improved"]
[]
[null,null,null,null,null,null,null,"CS 4—District staff are able to report contraceptive \nforecasting  data on time and accurately\n","CS 4—District staff are able to report contraceptive \nforecasting  data on time and accurately\n","CS 4—District staff are able to report contraceptive \nforecasting  data on time and accurately\n","CS 4—District staff are able to report contraceptive \nforecasting  data on time and accurately\n","CS 4—District staff are able to report contraceptive \nforecasting  data on time and accurately\n"]
[null,null,null,null,null,null,null,"PA 3—Policymakers have greater  awareness of family planning as a human rights issue","PA 3—Policymakers have greater  awareness of family planning as a human rights issue","PA 3—Policymakers have greater  awareness of family planning as a human rights issue","PA 3—Policymakers have greater  awareness of family planning as a human rights issue","PA 3—Policymakers have greater  awareness of family planning as a human rights issue"]
[]
[null,null,null,null,null,null,null,"F 1—Adequate funding is available for FP commodities\n and activities, in line with  the FP-CIP\n","F 1—Adequate funding is available for FP commodities\n and activities, in line with  the FP-CIP\n","F 1—Adequate funding is available for FP commodities\n and activities, in line with  the FP-CIP\n","F 1—Adequate funding is available for FP commodities\n and activities, in line with  the FP-CIP\n","F 1—Adequate funding is available for FP commodities\n and activities, in line with  the FP-CIP\n"]
[]
[]
[null,null,null,null,null,null,null,"SG 1—RHD effectively tracks and monitors the FP-CIP","SG 1—RHD effectively tracks and monitors the FP-CIP","SG 1—RHD effectively tracks and monitors the FP-CIP","SG 1—RHD effectively tracks and monitors the FP-CIP","SG 1—RHD effectively tracks and monitors the FP-CIP"]
[null,null,null,null,null,null,null,"SG 3—The government is better able to track and review district FP efforts\n","SG 3—The government is better able to track and review district FP efforts\n","SG 3—The government is better able to track and review district FP efforts\n","SG 3—The government is better able to track and review district FP efforts\n","SG 3—The government is better able to track and review district FP efforts\n"]
[]
[null,null,null,null,null,null,null,"SMC 3—Coordination  of FP activities is strengthened\n","SMC 3—Coordination  of FP activities is strengthened\n","SMC 3—Coordination  of FP activities is strengthened\n","SMC 3—Coordination  of FP activities is strengthened\n","SMC 3—Coordination  of FP activities is strengthened\n"]

{"sheet":"ResSheetSetup","index":8,"n_rows":17,"n_cols":19,"rows_kept":17,"cut":false,"hidden":true,"merged":[]}
[null,null,null,null,null,null,null,null,null,{"$f":"'Settings-Global'!S2","v":"Beneficiary"},null,null,null,{"$f":"'Settings-Global'!K36","v":2}]
[null,null,null,null,null,null,null,null,null,{"$f":"'Settings-Global'!S3","v":"Program Processes"},null,null,null,null,null,null,null,null,{"$f":"ResSheetSetup!J1=IF(LEN(B22)>0, B22, \"\")","v":false}]
[null,null,null,null,null,null,null,null,null,{"$f":"'Settings-Global'!S4","v":""}]
[null,null,null,null,null,null,null,null,null,{"$f":"'Settings-Global'!S5","v":""}]
[null,null,null,null,null,null,null,null,null,{"$f":"'Settings-Global'!S6","v":""}]
[null,null,null,null,null,null,null,null,null,{"$f":"'Settings-Global'!S7","v":""}]
[null,null,null,null,null,null,null,null,null,{"$f":"'Settings-Global'!S8","v":""}]
[null,null,null,null,null,null,null,null,null,{"$f":"'Settings-Global'!S9","v":""}]
[null,null,null,null,null,null,null,null,null,{"$f":"'Settings-Global'!S10","v":""}]
[null,null,null,null,null,null,null,null,null,{"$f":"'Settings-Global'!S11","v":""}]
[null,"Color Code","Condition Status","Variance from Target",null,null,null,null,null,{"$f":"'Settings-Global'!S12","v":""}]
[null,null,"Met or Exceeded Target","≥ 100%",null,null,null,null,null,{"$f":"'Settings-Global'!S13","v":""}]
[null,null,"On Track","90% – 99.99%",null,null,null,null,null,{"$f":"'Settings-Global'!S14","v":""}]
[null,null,"Gaining Traction","70% – 89.99%",null,null,null,null,null,{"$f":"'Settings-Global'!S15","v":""}]
[null,null,"Building Momentum","50% - 69.99%"]
[null,null,"Delayed","0% - 49.99%"]
[null,null,"None","No data; 0"]

{"sheet":"C_graph_hidden","index":9,"n_rows":103,"n_cols":19,"rows_kept":103,"cut":false,"hidden":true,"merged":[[0,99,0,102],[0,103,0,106],[0,107,0,110],[0,111,0,112],[49,9,49,13],[49,14,49,18]]}
["Build capacity at all levels for FP Programming and Coordination",3,"Number of states that have domesticated the task shift and task sharing policy",null,"Test 1",1,"KPI Ben 2",null,"Test 3",2,"KPI Prog",null,"Test 3",2,"KPI Prog",null,"Test 3",2,"KPI SD"]
["Ensure state and federal level FP policies are in place and consistent",1,"Quarterly and annual reports to NRHTWG, listing results for each M&E indicator",null,"Test 2",1,"Annual allocation on family planning from development partners",null,"Test 4",1,"KPI Prog 2",null,"Test 4",1,"KPI Prog 2",null,"Test 4",1]
["Increase domestic resources for FP, both at federal and state government levels.",1,"Number of existing staff trained in either supervision, coordination management, or M&E of FP programme at the national and state levels",null,"S3. Youth are more knowledgeable about and act on informed fertility choice",1,"Percentage of government budget allocated to FP ",null,"Test 5",1,"Percentage of government budget allocated to FP ",null,"Test 5",1,null,null,"Test 5",1]
["Test 6",1,10,null,"S4. Youth have improved access to affordable FP options\n",1,10,null,"Test 6",1,10,null,"Test 6",1,null,null,"Test 6",1]
["SDA 5—Public-private  partnerships for FP service provisions are implemented",4,null,null,"S5 Men are more knowledgeable about and are accepting of FP. ",1,null,null,"S5 Men are more knowledgeable about and are accepting of FP. ",1,null,null,"S5",1,null,null,"S5",1]
["SDA 6—Access to family planning by young people is safe, rights-based, and confidential",3,null,null,"Improve supportive Supervision",1,null,"DC 1—Access to accurate information about healthy \ntiming and spacing of  pregnancies is increased \n","DC 1—Access to accurate information about healthy \ntiming and spacing of  pregnancies is increased \n"]
["CS 3—The LMIS and HMIS are improved",2,null,null,"Ensure all public health facilities have adequate # of category of trained staff according to national guidelines to provide LARC services",1]
["CS 4—District staff are able to report contraceptive \nforecasting  data on time and accurately",1,null,null,"Ensure contraceptives are available at all facilities including private sector at all times",1,null,"DC 2—Communities receive accurate information  about birth spacing and limiting family size through  contraceptive use\n","DC 2—Communities receive accurate information  about birth spacing and limiting family size through  contraceptive use\n"]
["PA 3—Policymakers have greater  awareness of family planning as a human rights issue",2,null,null,"Strengthen forecast procurement and logistics management skills",2]
["Strengthen state and LGA capacity to establish and manage high quality distribution systems",3,null,null,"Strengthen state and LGA capacity to establish and manage high quality distribution systems",3,null,"DC 6—Young people feel empowered to access FP services ","DC 6—Young people feel empowered to access FP services "]
["Advocate for FP at federal and state level",4,null,null,"Advocate for FP at federal and state level",4]
["Ensure state and national level FP policies are in place and consistent",1,null,null,"Ensure state and national level FP policies are in place and consistent",1]
["Clarify regulation and structure for data management",1,null,null,"Clarify regulation and structure for data management",1,null,"SDA 2—Access and use of FP services at health facilities \nand at the community level  is increased\n","SDA 2—Access and use of FP services at health facilities \nand at the community level  is increased\n"]
["Ensure all private sector providers have adequate # and category of trained staff according to national guidelines to provide LARC services",1,null,null,"Ensure all private sector providers have adequate # and category of trained staff according to national guidelines to provide LARC services",1]
[]
[]
[]
[]
[]
[]
[]
[]
[]
[]
[]
[]
[]
[]
[]
[]
[]
[]
[]
[]
[]
[]
[]
[]
[]
[]
[]
[]
[]
[]
[]
[]
[]
[]
[]
[]
[]
[]
[]
[]
[]
[]
[]
[]
[]
[]
[]
[]
[]
[]
[]
[]
[]
[]
[]
[]
[]
[]
[]
[]
[]
[]
[]
[]
[]
[]
[]
[]
[]
[]
[]
[]
[]
[]
[]
[]
[]
[]
[]
[]
[]
[]
[]
[]
[]
[80,27,100]
[80,27,100]
[80,27,100]
[null,27,100]

{"sheet":"Copy-Targets","index":10,"n_rows":5,"n_cols":7,"rows_kept":5,"cut":false,"hidden":true,"merged":[[3,5,4,5],[3,0,4,0],[3,1,4,1],[3,2,4,2],[3,3,4,3],[3,4,4,4]]}
["Step 1: Fill in required information (green cells): key performance indicators (KPI), indicator weighting, and annual targets."]
["Step 2: Fill in optional information (yellow cells): indicator definition, activities, and data sources."]
["Step 3: Press the “Update KPIs” button after completing the fields in this sheet."]
["Key Result Category","Key Result","KPI","Indicator - Definition","Activities","Data Source"]
[null,null,null,null,null,null,"Indicator Weighting"]

{"sheet":"BK-Beneficiary","index":11,"n_rows":11,"n_cols":572,"rows_kept":11,"cut":false,"hidden":true,"merged":[[7,0,8,0],[8,1,8,2],[9,0,10,0],[10,1,10,2],[0,21,0,24],[2,0,3,0],[3,1,3,2],[4,0,6,0],[5,1,5,2],[6,1,6,2],[0,0,1,0],[0,1,1,2],[0,3,0,5],[0,6,0,10],[0,11,0,15],[0,16,0,20]]}
["Key Result","Key Performance Indicator",null,2018,null,null,2019,null,null,null,null,2020,null,null,null,null,2021,null,null,null,null,2022]
[null,null,null,"Jul-Sep","Oct-Dec","Target","Jan-Mar","Apr-Jun","Jul-Sep","Oct-Dec","Target","Jan-Mar","Apr-Jun","Jul-Sep","Oct-Dec","Target","Jan-Mar","Apr-Jun","Jul-Sep","Oct-Dec","Target","Jan-Mar","Apr-Jun","Jul-Sep","Target"]
["Women of reproductive age are mor knowledgeable about FP options.","Condition Status:","ON TRACK"]
[null,"% of women of reproductive age who know at least 3 options for FP methods",null,0.45,0.45,0.5,null,null,null,null,0.6,null,null,null,null,0.7,null,null,null,null,0.8,null,null,null,0.9,null,null,null,null,null,null,null,null,null,null,null,null,null,null,null,null,null,null,null,null,null,null,null,null,null,null,null,null,null,null,null,null,null,null,null,null,null,null,null,null,null,null,null,null,null,null,null,null,null,null,null,null,null,null,null,null,null,null,null,null,null,null,null,null,null,null,null,null,null,null,null,null,null,null,null,null,null,null,null,null,null,null,null,null,null,null,null,null,null,null,null,null,null,null,null,null,null,null,null,null,null,null,null,null,null,null,null,null,null,null,null,null,null,null,null,null,null,null,null,null,null,null,null,null,null,null,null,null,null,null,null,null,null,null,null,null,null,null,null,null,null,null,null,null,null,null,null,null,null,null,null,null,null,null,null,null,null,null,null,null,null,null,null,null,null,null,null,null,null,null,null,null,null,null,null,null,null,null,null,null,null,null,null,null,null,null,null,null,null,null,null,null,null,null,null,null,null,null,null,null,null,null,null,null,null,null,null,null,null,null,null,null,null,null,null,null,null,null,null,null,null,null,null,null,null,null,null,null,null,null,null,null,null,null,null,null,null,null,null,null,null,null,null,null,null,null,null,null,null,null,null,null,null,null,null,null,null,null,null,null,null,null,null,null,null,null,null,null,null,null,null,null,null,null,null,null,null,null,null,null,null,null,null,null,null,null,null,null,null,null,null,null,null,null,null,null,null,null,null,null,null,null,null,null,null,null,null,null,null,null,null,null,null,null,null,null,null,null,null,null,null,null,null,null,null,null,null,null,null,null,null,null,null,null,null,null,null,null,null,null,null,null,null,null,null,null,null,null,null,null,null,null,null,null,null,null,null,null,null,null,null,null,null,null,null,null,null,null,null,null,null,null,null,null,null,null,null,null,null,null,null,null,null,null,null,null,null,null,null,null,null,null,null,null,null,null,null,null,null,null,null,null,null,null,null,null,null,null,null,null,null,null,null,null,null,null,null,null,null,null,null,null,null,null,null,null,null,null,null,null,null,null,null,null,null,null,null,null,null,null,null,null,null,null,null,null,null,null,null,null,null,null,null,null,null,null,null,null,null,null,null,null,null,null,null,null,null,null,null,null,null,null,null,null,null,null,null,null,null,null,null,null,null,null,null,null,null,null,null,null,null,null,null,null,null,null,null,null,null,null,null,null,null,null,null,null,null,null,null,null,null,null,null,null,null,null,null,null,null,null,null,null,null,null,null,null,null,null,null,null,null,null,null,null,null,null,null,null,null,null,null,null,null,null,null,null,"% of women of reproductive age who know at least 3 options for FP methods"]
["Women of reproductive age can better access affordable FP methods at local health facilities. ","Condition Status:","BUILDING MOMENTUM"]
[null,"% of women of reproductive age who are aware of legitimate and respectable health facilities in their community that provide comprehensive FP services",null,0.25,0.3,0.5,null,null,null,null,0.6,null,null,null,null,0.7,null,null,null,null,0.8,null,null,null,0.9,null,null,null,null,null,null,null,null,null,null,null,null,null,null,null,null,null,null,null,null,null,null,null,null,null,null,null,null,null,null,null,null,null,null,null,null,null,null,null,null,null,null,null,null,null,null,null,null,null,null,null,null,null,null,null,null,null,null,null,null,null,null,null,null,null,null,null,null,null,null,null,null,null,null,null,null,null,null,null,null,null,null,null,null,null,null,null,null,null,null,null,null,null,null,null,null,null,null,null,null,null,null,null,null,null,null,null,null,null,null,null,null,null,null,null,null,null,null,null,null,null,null,null,null,null,null,null,null,null,null,null,null,null,null,null,null,null,null,null,null,null,null,null,null,null,null,null,null,null,null,null,null,null,null,null,null,null,null,null,null,null,null,null,null,null,null,null,null,null,null,null,null,null,null,null,null,null,null,null,null,null,null,null,null,null,null,null,null,null,null,null,null,null,null,null,null,null,null,null,null,null,null,null,null,null,null,null,null,null,null,null,null,null,null,null,null,null,null,null,null,null,null,null,null,null,null,null,null,null,null,null,null,null,null,null,null,null,null,null,null,null,null,null,null,null,null,null,null,null,null,null,null,null,null,null,null,null,null,null,null,null,null,null,null,null,null,null,null,null,null,null,null,null,null,null,null,null,null,null,null,null,null,null,null,null,null,null,null,null,null,null,null,null,null,null,null,null,null,null,null,null,null,null,null,null,null,null,null,null,null,null,null,null,null,null,null,null,null,null,null,null,null,null,null,null,null,null,null,null,null,null,null,null,null,null,null,null,null,null,null,null,null,null,null,null,null,null,null,null,null,null,null,null,null,null,null,null,null,null,null,null,null,null,null,null,null,null,null,null,null,null,null,null,null,null,null,null,null,null,null,null,null,null,null,null,null,null,null,null,null,null,null,null,null,null,null,null,null,null,null,null,null,null,null,null,null,null,null,null,null,null,null,null,null,null,null,null,null,null,null,null,null,null,null,null,null,null,null,null,null,null,null,null,null,null,null,null,null,null,null,null,null,null,null,null,null,null,null,null,null,null,null,null,null,null,null,null,null,null,null,null,null,null,null,null,null,null,null,null,null,null,null,null,null,null,null,null,null,null,null,null,null,null,null,null,null,null,null,null,null,null,null,null,null,null,null,null,null,null,null,null,null,null,null,null,null,null,null,null,null,null,null,null,null,null,null,null,null,null,null,null,null,null,null,null,null,null,null,null,null,null,null,null,null,null,null,null,null,null,null,null,null,null,null,null,null,"% of women of reproductive age who are aware of legitimate and respectable health facilities in their community that provide comprehensive FP services"]
[null,"% of women of reproductive age who live in proximity to a health facility",null,0.1,0.12,0.25,null,null,null,null,0.3,null,null,null,null,0.35,null,null,null,null,0.4,null,null,null,0.45,null,null,null,null,null,null,null,null,null,null,null,null,null,null,null,null,null,null,null,null,null,null,null,null,null,null,null,null,null,null,null,null,null,null,null,null,null,null,null,null,null,null,null,null,null,null,null,null,null,null,null,null,null,null,null,null,null,null,null,null,null,null,null,null,null,null,null,null,null,null,null,null,null,null,null,null,null,null,null,null,null,null,null,null,null,null,null,null,null,null,null,null,null,null,null,null,null,null,null,null,null,null,null,null,null,null,null,null,null,null,null,null,null,null,null,null,null,null,null,null,null,null,null,null,null,null,null,null,null,null,null,null,null,null,null,null,null,null,null,null,null,null,null,null,null,null,null,null,null,null,null,null,null,null,null,null,null,null,null,null,null,null,null,null,null,null,null,null,null,null,null,null,null,null,null,null,null,null,null,null,null,null,null,null,null,null,null,null,null,null,null,null,null,null,null,null,null,null,null,null,null,null,null,null,null,null,null,null,null,null,null,null,null,null,null,null,null,null,null,null,null,null,null,null,null,null,null,null,null,null,null,null,null,null,null,null,null,null,null,null,null,null,null,null,null,null,null,null,null,null,null,null,null,null,null,null,null,null,null,null,null,null,null,null,null,null,null,null,null,null,null,null,null,null,null,null,null,null,null,null,null,null,null,null,null,null,null,null,null,null,null,null,null,null,null,null,null,null,null,null,null,null,null,null,null,null,null,null,null,null,null,null,null,null,null,null,null,null,null,null,null,null,null,null,null,null,null,null,null,null,null,null,null,null,null,null,null,null,null,null,null,null,null,null,null,null,null,null,null,null,null,null,null,null,null,null,null,null,null,null,null,null,null,null,null,null,null,null,null,null,null,null,null,null,null,null,null,null,null,null,null,null,null,null,null,null,null,null,null,null,null,null,null,null,null,null,null,null,null,null,null,null,null,null,null,null,null,null,null,null,null,null,null,null,null,null,null,null,null,null,null,null,null,null,null,null,null,null,null,null,null,null,null,null,null,null,null,null,null,null,null,null,null,null,null,null,null,null,null,null,null,null,null,null,null,null,null,null,null,null,null,null,null,null,null,null,null,null,null,null,null,null,null,null,null,null,null,null,null,null,null,null,null,null,null,null,null,null,null,null,null,null,null,null,null,null,null,null,null,null,null,null,null,null,null,null,null,null,null,null,null,null,null,null,null,null,null,null,null,null,null,null,null,null,null,null,null,null,null,null,null,null,null,null,null,null,null,null,null,null,null,null,null,null,null,null,"% of women of reproductive age who live in proximity to a health facility"]
["Youth are more knowledgeable about FP options.","Condition Status:","MET OR EXCEEDED TARGET"]
[null,"% of youth who know at least 3 options for FP methods",null,0.4,0.45,0.4,null,null,null,null,0.5,null,null,null,null,0.6,null,null,null,null,0.7,null,null,null,0.8,null,null,null,null,null,null,null,null,null,null,null,null,null,null,null,null,null,null,null,null,null,null,null,null,null,null,null,null,null,null,null,null,null,null,null,null,null,null,null,null,null,null,null,null,null,null,null,null,null,null,null,null,null,null,null,null,null,null,null,null,null,null,null,null,null,null,null,null,null,null,null,null,null,null,null,null,null,null,null,null,null,null,null,null,null,null,null,null,null,null,null,null,null,null,null,null,null,null,null,null,null,null,null,null,null,null,null,null,null,null,null,null,null,null,null,null,null,null,null,null,null,null,null,null,null,null,null,null,null,null,null,null,null,null,null,null,null,null,null,null,null,null,null,null,null,null,null,null,null,null,null,null,null,null,null,null,null,null,null,null,null,null,null,null,null,null,null,null,null,null,null,null,null,null,null,null,null,null,null,null,null,null,null,null,null,null,null,null,null,null,null,null,null,null,null,null,null,null,null,null,null,null,null,null,null,null,null,null,null,null,null,null,null,null,null,null,null,null,null,null,null,null,null,null,null,null,null,null,null,null,null,null,null,null,null,null,null,null,null,null,null,null,null,null,null,null,null,null,null,null,null,null,null,null,null,null,null,null,null,null,null,null,null,null,null,null,null,null,null,null,null,null,null,null,null,null,null,null,null,null,null,null,null,null,null,null,null,null,null,null,null,null,null,null,null,null,null,null,null,null,null,null,null,null,null,null,null,null,null,null,null,null,null,null,null,null,null,null,null,null,null,null,null,null,null,null,null,null,null,null,null,null,null,null,null,null,null,null,null,null,null,null,null,null,null,null,null,null,null,null,null,null,null,null,null,null,null,null,null,null,null,null,null,null,null,null,null,null,null,null,null,null,null,null,null,null,null,null,null,null,null,null,null,null,null,null,null,null,null,null,null,null,null,null,null,null,null,null,null,null,null,null,null,null,null,null,null,null,null,null,null,null,null,null,null,null,null,null,null,null,null,null,null,null,null,null,null,null,null,null,null,null,null,null,null,null,null,null,null,null,null,null,null,null,null,null,null,null,null,null,null,null,null,null,null,null,null,null,null,null,null,null,null,null,null,null,null,null,null,null,null,null,null,null,null,null,null,null,null,null,null,null,null,null,null,null,null,null,null,null,null,null,null,null,null,null,null,null,null,null,null,null,null,null,null,null,null,null,null,null,null,null,null,null,null,null,null,null,null,null,null,null,null,null,null,null,null,null,null,null,null,null,null,null,null,null,null,null,null,null,null,null,null,null,null,null,"% of youth who know at least 3 options for FP methods"]
["Men demonstrate acceptance of FP use of wives or partners.","Condition Status:","DELAYED"]
[null,"% of men who stated that FP use is an option that they would consider with their wife or partner",null,0.2,0.22,0.5,null,null,null,null,0.6,null,null,null,null,0.7,null,null,null,null,0.8,null,null,null,0.9,null,null,null,null,null,null,null,null,null,null,null,null,null,null,null,null,null,null,null,null,null,null,null,null,null,null,null,null,null,null,null,null,null,null,null,null,null,null,null,null,null,null,null,null,null,null,null,null,null,null,null,null,null,null,null,null,null,null,null,null,null,null,null,null,null,null,null,null,null,null,null,null,null,null,null,null,null,null,null,null,null,null,null,null,null,null,null,null,null,null,null,null,null,null,null,null,null,null,null,null,null,null,null,null,null,null,null,null,null,null,null,null,null,null,null,null,null,null,null,null,null,null,null,null,null,null,null,null,null,null,null,null,null,null,null,null,null,null,null,null,null,null,null,null,null,null,null,null,null,null,null,null,null,null,null,null,null,null,null,null,null,null,null,null,null,null,null,null,null,null,null,null,null,null,null,null,null,null,null,null,null,null,null,null,null,null,null,null,null,null,null,null,null,null,null,null,null,null,null,null,null,null,null,null,null,null,null,null,null,null,null,null,null,null,null,null,null,null,null,null,null,null,null,null,null,null,null,null,null,null,null,null,null,null,null,null,null,null,null,null,null,null,null,null,null,null,null,null,null,null,null,null,null,null,null,null,null,null,null,null,null,null,null,null,null,null,null,null,null,null,null,null,null,null,null,null,null,null,null,null,null,null,null,null,null,null,null,null,null,null,null,null,null,null,null,null,null,null,null,null,null,null,null,null,null,null,null,null,null,null,null,null,null,null,null,null,null,null,null,null,null,null,null,null,null,null,null,null,null,null,null,null,null,null,null,null,null,null,null,null,null,null,null,null,null,null,null,null,null,null,null,null,null,null,null,null,null,null,null,null,null,null,null,null,null,null,null,null,null,null,null,null,null,null,null,null,null,null,null,null,null,null,null,null,null,null,null,null,null,null,null,null,null,null,null,null,null,null,null,null,null,null,null,null,null,null,null,null,null,null,null,null,null,null,null,null,null,null,null,null,null,null,null,null,null,null,null,null,null,null,null,null,null,null,null,null,null,null,null,null,null,null,null,null,null,null,null,null,null,null,null,null,null,null,null,null,null,null,null,null,null,null,null,null,null,null,null,null,null,null,null,null,null,null,null,null,null,null,null,null,null,null,null,null,null,null,null,null,null,null,null,null,null,null,null,null,null,null,null,null,null,null,null,null,null,null,null,null,null,null,null,null,null,null,null,null,null,null,null,null,null,null,null,null,null,null,null,null,null,null,null,null,null,null,null,null,null,null,null,null,null,null,null,null,null,null,"% of men who stated that FP use is an option that they would consider with their wife or partner"]

{"sheet":"BK-ProgramProcesses","index":12,"n_rows":20,"n_cols":572,"rows_kept":20,"cut":false,"hidden":true,"merged":[[18,0,19,0],[19,1,19,2],[9,1,9,2],[10,0,12,0],[11,1,11,2],[12,1,12,2],[15,0,17,0],[16,1,16,2],[17,1,17,2],[13,0,14,0],[14,1,14,2],[8,0,9,0],[0,21,0,24],[2,0,3,0],[3,1,3,2],[4,0,7,0],[5,1,5,2],[6,1,6,2],[7,1,7,2],[0,0,1,0],[0,1,1,2],[0,3,0,5],[0,6,0,10],[0,11,0,15],[0,16,0,20]]}
["Key Result","Key Performance Indicator",null,2018,null,null,2019,null,null,null,null,2020,null,null,null,null,2021,null,null,null,null,2022]
[null,null,null,"Jul-Sep","Oct-Dec","Target","Jan-Mar","Apr-Jun","Jul-Sep","Oct-Dec","Target","Jan-Mar","Apr-Jun","Jul-Sep","Oct-Dec","Target","Jan-Mar","Apr-Jun","Jul-Sep","Oct-Dec","Target","Jan-Mar","Apr-Jun","Jul-Sep","Target"]
["Demand Creation : Communities are able to access accurate and quality FP-related information.","Condition Status:","NO DATA"]
[null,"% of the population with reach to FP messages",null,null,null,0.45,null,null,null,null,0.55000000000000004,null,null,null,null,0.65,null,null,null,null,0.75,null,null,null,0.85,null,null,null,null,null,null,null,null,null,null,null,null,null,null,null,null,null,null,null,null,null,null,null,null,null,null,null,null,null,null,null,null,null,null,null,null,null,null,null,null,null,null,null,null,null,null,null,null,null,null,null,null,null,null,null,null,null,null,null,null,null,null,null,null,null,null,null,null,null,null,null,null,null,null,null,null,null,null,null,null,null,null,null,null,null,null,null,null,null,null,null,null,null,null,null,null,null,null,null,null,null,null,null,null,null,null,null,null,null,null,null,null,null,null,null,null,null,null,null,null,null,null,null,null,null,null,null,null,null,null,null,null,null,null,null,null,null,null,null,null,null,null,null,null,null,null,null,null,null,null,null,null,null,null,null,null,null,null,null,null,null,null,null,null,null,null,null,null,null,null,null,null,null,null,null,null,null,null,null,null,null,null,null,null,null,null,null,null,null,null,null,null,null,null,null,null,null,null,null,null,null,null,null,null,null,null,null,null,null,null,null,null,null,null,null,null,null,null,null,null,null,null,null,null,null,null,null,null,null,null,null,null,null,null,null,null,null,null,null,null,null,null,null,null,null,null,null,null,null,null,null,null,null,null,null,null,null,null,null,null,null,null,null,null,null,null,null,null,null,null,null,null,null,null,null,null,null,null,null,null,null,null,null,null,null,null,null,null,null,null,null,null,null,null,null,null,null,null,null,null,null,null,null,null,null,null,null,null,null,null,null,null,null,null,null,null,null,null,null,null,null,null,null,null,null,null,null,null,null,null,null,null,null,null,null,null,null,null,null,null,null,null,null,null,null,null,null,null,null,null,null,null,null,null,null,null,null,null,null,null,null,null,null,null,null,null,null,null,null,null,null,null,null,null,null,null,null,null,null,null,null,null,null,null,null,null,null,null,null,null,null,null,null,null,null,null,null,null,null,null,null,null,null,null,null,null,null,null,null,null,null,null,null,null,null,null,null,null,null,null,null,null,null,null,null,null,null,null,null,null,null,null,null,null,null,null,null,null,null,null,null,null,null,null,null,null,null,null,null,null,null,null,null,null,null,null,null,null,null,null,null,null,null,null,null,null,null,null,null,null,null,null,null,null,null,null,null,null,null,null,null,null,null,null,null,null,null,null,null,null,null,null,null,null,null,null,null,null,null,null,null,null,null,null,null,null,null,null,null,null,null,null,null,null,null,null,null,null,null,null,null,null,null,null,null,null,null,null,null,null,null,null,null,null,null,null,null,null,null,null,null,null,null,null,null,null,"% of the population with reach to FP messages"]
["Service Delivery : The number of health facilities (including public and private) which provide quality FP services and counselling is increased.","Condition Status:","NO DATA"]
[null,"# of facilities providing comprehensive FP services",null,null,null,30000,null,null,null,null,40000,null,null,null,null,50000,null,null,null,null,60000,null,null,null,70000,null,null,null,null,null,null,null,null,null,null,null,null,null,null,null,null,null,null,null,null,null,null,null,null,null,null,null,null,null,null,null,null,null,null,null,null,null,null,null,null,null,null,null,null,null,null,null,null,null,null,null,null,null,null,null,null,null,null,null,null,null,null,null,null,null,null,null,null,null,null,null,null,null,null,null,null,null,null,null,null,null,null,null,null,null,null,null,null,null,null,null,null,null,null,null,null,null,null,null,null,null,null,null,null,null,null,null,null,null,null,null,null,null,null,null,null,null,null,null,null,null,null,null,null,null,null,null,null,null,null,null,null,null,null,null,null,null,null,null,null,null,null,null,null,null,null,null,null,null,null,null,null,null,null,null,null,null,null,null,null,null,null,null,null,null,null,null,null,null,null,null,null,null,null,null,null,null,null,null,null,null,null,null,null,null,null,null,null,null,null,null,null,null,null,null,null,null,null,null,null,null,null,null,null,null,null,null,null,null,null,null,null,null,null,null,null,null,null,null,null,null,null,null,null,null,null,null,null,null,null,null,null,null,null,null,null,null,null,null,null,null,null,null,null,null,null,null,null,null,null,null,null,null,null,null,null,null,null,null,null,null,null,null,null,null,null,null,null,null,null,null,null,null,null,null,null,null,null,null,null,null,null,null,null,null,null,null,null,null,null,null,null,null,null,null,null,null,null,null,null,null,null,null,null,null,null,null,null,null,null,null,null,null,null,null,null,null,null,null,null,null,null,null,null,null,null,null,null,null,null,null,null,null,null,null,null,null,null,null,null,null,null,null,null,null,null,null,null,null,null,null,null,null,null,null,null,null,null,null,null,null,null,null,null,null,null,null,null,null,null,null,null,null,null,null,null,null,null,null,null,null,null,null,null,null,null,null,null,null,null,null,null,null,null,null,null,null,null,null,null,null,null,null,null,null,null,null,null,null,null,null,null,null,null,null,null,null,null,null,null,null,null,null,null,null,null,null,null,null,null,null,null,null,null,null,null,null,null,null,null,null,null,null,null,null,null,null,null,null,null,null,null,null,null,null,null,null,null,null,null,null,null,null,null,null,null,null,null,null,null,null,null,null,null,null,null,null,null,null,null,null,null,null,null,null,null,null,null,null,null,null,null,null,null,null,null,null,null,null,null,null,null,null,null,null,null,null,null,null,null,null,null,null,null,null,null,null,null,null,null,null,null,null,null,null,null,null,null,null,null,null,null,null,null,null,null,null,null,null,null,null,null,null,null,null,null,"# of facilities providing comprehensive FP services"]
[null,"# of facilities with a sufficient amount of trained staff who can provide comprehensive FP services including LARCs ",null,null,null,25000,null,null,null,null,35000,null,null,null,null,45000,null,null,null,null,55000,null,null,null,65000,null,null,null,null,null,null,null,null,null,null,null,null,null,null,null,null,null,null,null,null,null,null,null,null,null,null,null,null,null,null,null,null,null,null,null,null,null,null,null,null,null,null,null,null,null,null,null,null,null,null,null,null,null,null,null,null,null,null,null,null,null,null,null,null,null,null,null,null,null,null,null,null,null,null,null,null,null,null,null,null,null,null,null,null,null,null,null,null,null,null,null,null,null,null,null,null,null,null,null,null,null,null,null,null,null,null,null,null,null,null,null,null,null,null,null,null,null,null,null,null,null,null,null,null,null,null,null,null,null,null,null,null,null,null,null,null,null,null,null,null,null,null,null,null,null,null,null,null,null,null,null,null,null,null,null,null,null,null,null,null,null,null,null,null,null,null,null,null,null,null,null,null,null,null,null,null,null,null,null,null,null,null,null,null,null,null,null,null,null,null,null,null,null,null,null,null,null,null,null,null,null,null,null,null,null,null,null,null,null,null,null,null,null,null,null,null,null,null,null,null,null,null,null,null,null,null,null,null,null,null,null,null,null,null,null,null,null,null,null,null,null,null,null,null,null,null,null,null,null,null,null,null,null,null,null,null,null,null,null,null,null,null,null,null,null,null,null,null,null,null,null,null,null,null,null,null,null,null,null,null,null,null,null,null,null,null,null,null,null,null,null,null,null,null,null,null,null,null,null,null,null,null,null,null,null,null,null,null,null,null,null,null,null,null,null,null,null,null,null,null,null,null,null,null,null,null,null,null,null,null,null,null,null,null,null,null,null,null,null,null,null,null,null,null,null,null,null,null,null,null,null,null,null,null,null,null,null,null,null,null,null,null,null,null,null,null,null,null,null,null,null,null,null,null,null,null,null,null,null,null,null,null,null,null,null,null,null,null,null,null,null,null,null,null,null,null,null,null,null,null,null,null,null,null,null,null,null,null,null,null,null,null,null,null,null,null,null,null,null,null,null,null,null,null,null,null,null,null,null,null,null,null,null,null,null,null,null,null,null,null,null,null,null,null,null,null,null,null,null,null,null,null,null,null,null,null,null,null,null,null,null,null,null,null,null,null,null,null,null,null,null,null,null,null,null,null,null,null,null,null,null,null,null,null,null,null,null,null,null,null,null,null,null,null,null,null,null,null,null,null,null,null,null,null,null,null,null,null,null,null,null,null,null,null,null,null,null,null,null,null,null,null,null,null,null,null,null,null,null,null,null,null,null,null,null,null,null,null,null,null,null,null,null,null,null,null,"# of facilities with a sufficient amount of trained staff who can provide comprehensive FP services including LARCs "]
[null,"# of facilities with a sufficient amount of staff trained on counselling youth, women of reproductive age, and men about FP options",null,null,null,15000,null,null,null,null,20000,null,null,null,null,25000,null,null,null,null,30000,null,null,null,35000,null,null,null,null,null,null,null,null,null,null,null,null,null,null,null,null,null,null,null,null,null,null,null,null,null,null,null,null,null,null,null,null,null,null,null,null,null,null,null,null,null,null,null,null,null,null,null,null,null,null,null,null,null,null,null,null,null,null,null,null,null,null,null,null,null,null,null,null,null,null,null,null,null,null,null,null,null,null,null,null,null,null,null,null,null,null,null,null,null,null,null,null,null,null,null,null,null,null,null,null,null,null,null,null,null,null,null,null,null,null,null,null,null,null,null,null,null,null,null,null,null,null,null,null,null,null,null,null,null,null,null,null,null,null,null,null,null,null,null,null,null,null,null,null,null,null,null,null,null,null,null,null,null,null,null,null,null,null,null,null,null,null,null,null,null,null,null,null,null,null,null,null,null,null,null,null,null,null,null,null,null,null,null,null,null,null,null,null,null,null,null,null,null,null,null,null,null,null,null,null,null,null,null,null,null,null,null,null,null,null,null,null,null,null,null,null,null,null,null,null,null,null,null,null,null,null,null,null,null,null,null,null,null,null,null,null,null,null,null,null,null,null,null,null,null,null,null,null,null,null,null,null,null,null,null,null,null,null,null,null,null,null,null,null,null,null,null,null,null,null,null,null,null,null,null,null,null,null,null,null,null,null,null,null,null,null,null,null,null,null,null,null,null,null,null,null,null,null,null,null,null,null,null,null,null,null,null,null,null,null,null,null,null,null,null,null,null,null,null,null,null,null,null,null,null,null,null,null,null,null,null,null,null,null,null,null,null,null,null,null,null,null,null,null,null,null,null,null,null,null,null,null,null,null,null,null,null,null,null,null,null,null,null,null,null,null,null,null,null,null,null,null,null,null,null,null,null,null,null,null,null,null,null,null,null,null,null,null,null,null,null,null,null,null,null,null,null,null,null,null,null,null,null,null,null,null,null,null,null,null,null,null,null,null,null,null,null,null,null,null,null,null,null,null,null,null,null,null,null,null,null,null,null,null,null,null,null,null,null,null,null,null,null,null,null,null,null,null,null,null,null,null,null,null,null,null,null,null,null,null,null,null,null,null,null,null,null,null,null,null,null,null,null,null,null,null,null,null,null,null,null,null,null,null,null,null,null,null,null,null,null,null,null,null,null,null,null,null,null,null,null,null,null,null,null,null,null,null,null,null,null,null,null,null,null,null,null,null,null,null,null,null,null,null,null,null,null,null,null,null,null,null,null,null,null,null,null,null,null,null,null,null,null,null,null,null,"# of facilities with a sufficient amount of staff trained on counselling youth, women of reproductive age, and men about FP options"]
["Service Delivery : The number of facilities providing high-quality youth FP services is increased.","Condition Status:","NO DATA"]
[null,"# of facilities that provide youth-friendly health services per district",null,null,null,1000,null,null,null,null,2000,null,null,null,null,3000,null,null,null,null,4000,null,null,null,5000,null,null,null,null,null,null,null,null,null,null,null,null,null,null,null,null,null,null,null,null,null,null,null,null,null,null,null,null,null,null,null,null,null,null,null,null,null,null,null,null,null,null,null,null,null,null,null,null,null,null,null,null,null,null,null,null,null,null,null,null,null,null,null,null,null,null,null,null,null,null,null,null,null,null,null,null,null,null,null,null,null,null,null,null,null,null,null,null,null,null,null,null,null,null,null,null,null,null,null,null,null,null,null,null,null,null,null,null,null,null,null,null,null,null,null,null,null,null,null,null,null,null,null,null,null,null,null,null,null,null,null,null,null,null,null,null,null,null,null,null,null,null,null,null,null,null,null,null,null,null,null,null,null,null,null,null,null,null,null,null,null,null,null,null,null,null,null,null,null,null,null,null,null,null,null,null,null,null,null,null,null,null,null,null,null,null,null,null,null,null,null,null,null,null,null,null,null,null,null,null,null,null,null,null,null,null,null,null,null,null,null,null,null,null,null,null,null,null,null,null,null,null,null,null,null,null,null,null,null,null,null,null,null,null,null,null,null,null,null,null,null,null,null,null,null,null,null,null,null,null,null,null,null,null,null,null,null,null,null,null,null,null,null,null,null,null,null,null,null,null,null,null,null,null,null,null,null,null,null,null,null,null,null,null,null,null,null,null,null,null,null,null,null,null,null,null,null,null,null,null,null,null,null,null,null,null,null,null,null,null,null,null,null,null,null,null,null,null,null,null,null,null,null,null,null,null,null,null,null,null,null,null,null,null,null,null,null,null,null,null,null,null,null,null,null,null,null,null,null,null,null,null,null,null,null,null,null,null,null,null,null,null,null,null,null,null,null,null,null,null,null,null,null,null,null,null,null,null,null,null,null,null,null,null,null,null,null,null,null,null,null,null,null,null,null,null,null,null,null,null,null,null,null,null,null,null,null,null,null,null,null,null,null,null,null,null,null,null,null,null,null,null,null,null,null,null,null,null,null,null,null,null,null,null,null,null,null,null,null,null,null,null,null,null,null,null,null,null,null,null,null,null,null,null,null,null,null,null,null,null,null,null,null,null,null,null,null,null,null,null,null,null,null,null,null,null,null,null,null,null,null,null,null,null,null,null,null,null,null,null,null,null,null,null,null,null,null,null,null,null,null,null,null,null,null,null,null,null,null,null,null,null,null,null,null,null,null,null,null,null,null,null,null,null,null,null,null,null,null,null,null,null,null,null,null,null,null,null,null,null,null,null,null,null,null,null,"# of facilities that provide youth-friendly health services per district"]
["Contraceptive Security : Forecasting, procurement, and logistics processes are strengthened at each level of the country's health care system.","Condition Status:","NO DATA"]
[null,"% of districts/counties reporting timely and accurate forecasting data",null,null,null,0.3,null,null,null,null,0.4,null,null,null,null,0.5,null,null,null,null,0.6,null,null,null,0.7,null,null,null,null,null,null,null,null,null,null,null,null,null,null,null,null,null,null,null,null,null,null,null,null,null,null,null,null,null,null,null,null,null,null,null,null,null,null,null,null,null,null,null,null,null,null,null,null,null,null,null,null,null,null,null,null,null,null,null,null,null,null,null,null,null,null,null,null,null,null,null,null,null,null,null,null,null,null,null,null,null,null,null,null,null,null,null,null,null,null,null,null,null,null,null,null,null,null,null,null,null,null,null,null,null,null,null,null,null,null,null,null,null,null,null,null,null,null,null,null,null,null,null,null,null,null,null,null,null,null,null,null,null,null,null,null,null,null,null,null,null,null,null,null,null,null,null,null,null,null,null,null,null,null,null,null,null,null,null,null,null,null,null,null,null,null,null,null,null,null,null,null,null,null,null,null,null,null,null,null,null,null,null,null,null,null,null,null,null,null,null,null,null,null,null,null,null,null,null,null,null,null,null,null,null,null,null,null,null,null,null,null,null,null,null,null,null,null,null,null,null,null,null,null,null,null,null,null,null,null,null,null,null,null,null,null,null,null,null,null,null,null,null,null,null,null,null,null,null,null,null,null,null,null,null,null,null,null,null,null,null,null,null,null,null,null,null,null,null,null,null,null,null,null,null,null,null,null,null,null,null,null,null,null,null,null,null,null,null,null,null,null,null,null,null,null,null,null,null,null,null,null,null,null,null,null,null,null,null,null,null,null,null,null,null,null,null,null,null,null,null,null,null,null,null,null,null,null,null,null,null,null,null,null,null,null,null,null,null,null,null,null,null,null,null,null,null,null,null,null,null,null,null,null,null,null,null,null,null,null,null,null,null,null,null,null,null,null,null,null,null,null,null,null,null,null,null,null,null,null,null,null,null,null,null,null,null,null,null,null,null,null,null,null,null,null,null,null,null,null,null,null,null,null,null,null,null,null,null,null,null,null,null,null,null,null,null,null,null,null,null,null,null,null,null,null,null,null,null,null,null,null,null,null,null,null,null,null,null,null,null,null,null,null,null,null,null,null,null,null,null,null,null,null,null,null,null,null,null,null,null,null,null,null,null,null,null,null,null,null,null,null,null,null,null,null,null,null,null,null,null,null,null,null,null,null,null,null,null,null,null,null,null,null,null,null,null,null,null,null,null,null,null,null,null,null,null,null,null,null,null,null,null,null,null,null,null,null,null,null,null,null,null,null,null,null,null,null,null,null,null,null,null,null,null,null,null,null,null,null,null,null,null,null,null,null,"% of districts/counties reporting timely and accurate forecasting data"]
[null,"% of districts/counties that have trained staff on FP supply chain management",null,null,null,0.4,null,null,null,null,0.45,null,null,null,null,0.5,null,null,null,null,0.55000000000000004,null,null,null,0.6,null,null,null,null,null,null,null,null,null,null,null,null,null,null,null,null,null,null,null,null,null,null,null,null,null,null,null,null,null,null,null,null,null,null,null,null,null,null,null,null,null,null,null,null,null,null,null,null,null,null,null,null,null,null,null,null,null,null,null,null,null,null,null,null,null,null,null,null,null,null,null,null,null,null,null,null,null,null,null,null,null,null,null,null,null,null,null,null,null,null,null,null,null,null,null,null,null,null,null,null,null,null,null,null,null,null,null,null,null,null,null,null,null,null,null,null,null,null,null,null,null,null,null,null,null,null,null,null,null,null,null,null,null,null,null,null,null,null,null,null,null,null,null,null,null,null,null,null,null,null,null,null,null,null,null,null,null,null,null,null,null,null,null,null,null,null,null,null,null,null,null,null,null,null,null,null,null,null,null,null,null,null,null,null,null,null,null,null,null,null,null,null,null,null,null,null,null,null,null,null,null,null,null,null,null,null,null,null,null,null,null,null,null,null,null,null,null,null,null,null,null,null,null,null,null,null,null,null,null,null,null,null,null,null,null,null,null,null,null,null,null,null,null,null,null,null,null,null,null,null,null,null,null,null,null,null,null,null,null,null,null,null,null,null,null,null,null,null,null,null,null,null,null,null,null,null,null,null,null,null,null,null,null,null,null,null,null,null,null,null,null,null,null,null,null,null,null,null,null,null,null,null,null,null,null,null,null,null,null,null,null,null,null,null,null,null,null,null,null,null,null,null,null,null,null,null,null,null,null,null,null,null,null,null,null,null,null,null,null,null,null,null,null,null,null,null,null,null,null,null,null,null,null,null,null,null,null,null,null,null,null,null,null,null,null,null,null,null,null,null,null,null,null,null,null,null,null,null,null,null,null,null,null,null,null,null,null,null,null,null,null,null,null,null,null,null,null,null,null,null,null,null,null,null,null,null,null,null,null,null,null,null,null,null,null,null,null,null,null,null,null,null,null,null,null,null,null,null,null,null,null,null,null,null,null,null,null,null,null,null,null,null,null,null,null,null,null,null,null,null,null,null,null,null,null,null,null,null,null,null,null,null,null,null,null,null,null,null,null,null,null,null,null,null,null,null,null,null,null,null,null,null,null,null,null,null,null,null,null,null,null,null,null,null,null,null,null,null,null,null,null,null,null,null,null,null,null,null,null,null,null,null,null,null,null,null,null,null,null,null,null,null,null,null,null,null,null,null,null,null,null,null,null,null,null,null,null,null,null,null,null,null,null,null,null,null,"% of districts/counties that have trained staff on FP supply chain management"]
["Policy and Enabling Environment : The number of opinion leaders within the national and local governments who recognize and act on the importance of FP is increased.","Condition Status:","NO DATA"]
[null,"# of national and local government level FP advocates or champions",null,null,null,12,null,null,null,null,14,null,null,null,null,16,null,null,null,null,18,null,null,null,20,null,null,null,null,null,null,null,null,null,null,null,null,null,null,null,null,null,null,null,null,null,null,null,null,null,null,null,null,null,null,null,null,null,null,null,null,null,null,null,null,null,null,null,null,null,null,null,null,null,null,null,null,null,null,null,null,null,null,null,null,null,null,null,null,null,null,null,null,null,null,null,null,null,null,null,null,null,null,null,null,null,null,null,null,null,null,null,null,null,null,null,null,null,null,null,null,null,null,null,null,null,null,null,null,null,null,null,null,null,null,null,null,null,null,null,null,null,null,null,null,null,null,null,null,null,null,null,null,null,null,null,null,null,null,null,null,null,null,null,null,null,null,null,null,null,null,null,null,null,null,null,null,null,null,null,null,null,null,null,null,null,null,null,null,null,null,null,null,null,null,null,null,null,null,null,null,null,null,null,null,null,null,null,null,null,null,null,null,null,null,null,null,null,null,null,null,null,null,null,null,null,null,null,null,null,null,null,null,null,null,null,null,null,null,null,null,null,null,null,null,null,null,null,null,null,null,null,null,null,null,null,null,null,null,null,null,null,null,null,null,null,null,null,null,null,null,null,null,null,null,null,null,null,null,null,null,null,null,null,null,null,null,null,null,null,null,null,null,null,null,null,null,null,null,null,null,null,null,null,null,null,null,null,null,null,null,null,null,null,null,null,null,null,null,null,null,null,null,null,null,null,null,null,null,null,null,null,null,null,null,null,null,null,null,null,null,null,null,null,null,null,null,null,null,null,null,null,null,null,null,null,null,null,null,null,null,null,null,null,null,null,null,null,null,null,null,null,null,null,null,null,null,null,null,null,null,null,null,null,null,null,null,null,null,null,null,null,null,null,null,null,null,null,null,null,null,null,null,null,null,null,null,null,null,null,null,null,null,null,null,null,null,null,null,null,null,null,null,null,null,null,null,null,null,null,null,null,null,null,null,null,null,null,null,null,null,null,null,null,null,null,null,null,null,null,null,null,null,null,null,null,null,null,null,null,null,null,null,null,null,null,null,null,null,null,null,null,null,null,null,null,null,null,null,null,null,null,null,null,null,null,null,null,null,null,null,null,null,null,null,null,null,null,null,null,null,null,null,null,null,null,null,null,null,null,null,null,null,null,null,null,null,null,null,null,null,null,null,null,null,null,null,null,null,null,null,null,null,null,null,null,null,null,null,null,null,null,null,null,null,null,null,null,null,null,null,null,null,null,null,null,null,null,null,null,null,null,null,null,null,null,null,null,null,null,null,"# of national and local government level FP advocates or champions"]
["Demand Creation : FP promotion messaging is shared through new media platforms.","Condition Status:","NO DATA"]
[null,"Demonstrated evidence of social media platform established",null,null,null,0,null,null,null,null,0,null,null,null,null,0,null,null,null,null,1,null,null,null,0,null,null,null,null,null,null,null,null,null,null,null,null,null,null,null,null,null,null,null,null,null,null,null,null,null,null,null,null,null,null,null,null,null,null,null,null,null,null,null,null,null,null,null,null,null,null,null,null,null,null,null,null,null,null,null,null,null,null,null,null,null,null,null,null,null,null,null,null,null,null,null,null,null,null,null,null,null,null,null,null,null,null,null,null,null,null,null,null,null,null,null,null,null,null,null,null,null,null,null,null,null,null,null,null,null,null,null,null,null,null,null,null,null,null,null,null,null,null,null,null,null,null,null,null,null,null,null,null,null,null,null,null,null,null,null,null,null,null,null,null,null,null,null,null,null,null,null,null,null,null,null,null,null,null,null,null,null,null,null,null,null,null,null,null,null,null,null,null,null,null,null,null,null,null,null,null,null,null,null,null,null,null,null,null,null,null,null,null,null,null,null,null,null,null,null,null,null,null,null,null,null,null,null,null,null,null,null,null,null,null,null,null,null,null,null,null,null,null,null,null,null,null,null,null,null,null,null,null,null,null,null,null,null,null,null,null,null,null,null,null,null,null,null,null,null,null,null,null,null,null,null,null,null,null,null,null,null,null,null,null,null,null,null,null,null,null,null,null,null,null,null,null,null,null,null,null,null,null,null,null,null,null,null,null,null,null,null,null,null,null,null,null,null,null,null,null,null,null,null,null,null,null,null,null,null,null,null,null,null,null,null,null,null,null,null,null,null,null,null,null,null,null,null,null,null,null,null,null,null,null,null,null,null,null,null,null,null,null,null,null,null,null,null,null,null,null,null,null,null,null,null,null,null,null,null,null,null,null,null,null,null,null,null,null,null,null,null,null,null,null,null,null,null,null,null,null,null,null,null,null,null,null,null,null,null,null,null,null,null,null,null,null,null,null,null,null,null,null,null,null,null,null,null,null,null,null,null,null,null,null,null,null,null,null,null,null,null,null,null,null,null,null,null,null,null,null,null,null,null,null,null,null,null,null,null,null,null,null,null,null,null,null,null,null,null,null,null,null,null,null,null,null,null,null,null,null,null,null,null,null,null,null,null,null,null,null,null,null,null,null,null,null,null,null,null,null,null,null,null,null,null,null,null,null,null,null,null,null,null,null,null,null,null,null,null,null,null,null,null,null,null,null,null,null,null,null,null,null,null,null,null,null,null,null,null,null,null,null,null,null,null,null,null,null,null,null,null,null,null,null,null,null,null,null,null,null,null,null,null,null,null,null,null,null,null,null,"Demonstrated evidence of social media platform established"]
[null,"Demonstrated evidence of mHealth platform established",null,null,null,0.5,null,null,null,null,0.75,null,null,null,null,1,null,null,null,null,0,null,null,null,0,null,null,null,null,null,null,null,null,null,null,null,null,null,null,null,null,null,null,null,null,null,null,null,null,null,null,null,null,null,null,null,null,null,null,null,null,null,null,null,null,null,null,null,null,null,null,null,null,null,null,null,null,null,null,null,null,null,null,null,null,null,null,null,null,null,null,null,null,null,null,null,null,null,null,null,null,null,null,null,null,null,null,null,null,null,null,null,null,null,null,null,null,null,null,null,null,null,null,null,null,null,null,null,null,null,null,null,null,null,null,null,null,null,null,null,null,null,null,null,null,null,null,null,null,null,null,null,null,null,null,null,null,null,null,null,null,null,null,null,null,null,null,null,null,null,null,null,null,null,null,null,null,null,null,null,null,null,null,null,null,null,null,null,null,null,null,null,null,null,null,null,null,null,null,null,null,null,null,null,null,null,null,null,null,null,null,null,null,null,null,null,null,null,null,null,null,null,null,null,null,null,null,null,null,null,null,null,null,null,null,null,null,null,null,null,null,null,null,null,null,null,null,null,null,null,null,null,null,null,null,null,null,null,null,null,null,null,null,null,null,null,null,null,null,null,null,null,null,null,null,null,null,null,null,null,null,null,null,null,null,null,null,null,null,null,null,null,null,null,null,null,null,null,null,null,null,null,null,null,null,null,null,null,null,null,null,null,null,null,null,null,null,null,null,null,null,null,null,null,null,null,null,null,null,null,null,null,null,null,null,null,null,null,null,null,null,null,null,null,null,null,null,null,null,null,null,null,null,null,null,null,null,null,null,null,null,null,null,null,null,null,null,null,null,null,null,null,null,null,null,null,null,null,null,null,null,null,null,null,null,null,null,null,null,null,null,null,null,null,null,null,null,null,null,null,null,null,null,null,null,null,null,null,null,null,null,null,null,null,null,null,null,null,null,null,null,null,null,null,null,null,null,null,null,null,null,null,null,null,null,null,null,null,null,null,null,null,null,null,null,null,null,null,null,null,null,null,null,null,null,null,null,null,null,null,null,null,null,null,null,null,null,null,null,null,null,null,null,null,null,null,null,null,null,null,null,null,null,null,null,null,null,null,null,null,null,null,null,null,null,null,null,null,null,null,null,null,null,null,null,null,null,null,null,null,null,null,null,null,null,null,null,null,null,null,null,null,null,null,null,null,null,null,null,null,null,null,null,null,null,null,null,null,null,null,null,null,null,null,null,null,null,null,null,null,null,null,null,null,null,null,null,null,null,null,null,null,null,null,null,null,null,null,null,null,null,"Demonstrated evidence of mHealth platform established"]
["Demand Creation : SBCC strategy is developed and disseminated.","Condition Status:","NO DATA"]
[null,"Demonstrated evidence of approved and disseminated (at both national and regional level) SBCC Strategy",null,null,null,1,null,null,null,null,0,null,null,null,null,0,null,null,null,null,0,null,null,null,0,null,null,null,null,null,null,null,null,null,null,null,null,null,null,null,null,null,null,null,null,null,null,null,null,null,null,null,null,null,null,null,null,null,null,null,null,null,null,null,null,null,null,null,null,null,null,null,null,null,null,null,null,null,null,null,null,null,null,null,null,null,null,null,null,null,null,null,null,null,null,null,null,null,null,null,null,null,null,null,null,null,null,null,null,null,null,null,null,null,null,null,null,null,null,null,null,null,null,null,null,null,null,null,null,null,null,null,null,null,null,null,null,null,null,null,null,null,null,null,null,null,null,null,null,null,null,null,null,null,null,null,null,null,null,null,null,null,null,null,null,null,null,null,null,null,null,null,null,null,null,null,null,null,null,null,null,null,null,null,null,null,null,null,null,null,null,null,null,null,null,null,null,null,null,null,null,null,null,null,null,null,null,null,null,null,null,null,null,null,null,null,null,null,null,null,null,null,null,null,null,null,null,null,null,null,null,null,null,null,null,null,null,null,null,null,null,null,null,null,null,null,null,null,null,null,null,null,null,null,null,null,null,null,null,null,null,null,null,null,null,null,null,null,null,null,null,null,null,null,null,null,null,null,null,null,null,null,null,null,null,null,null,null,null,null,null,null,null,null,null,null,null,null,null,null,null,null,null,null,null,null,null,null,null,null,null,null,null,null,null,null,null,null,null,null,null,null,null,null,null,null,null,null,null,null,null,null,null,null,null,null,null,null,null,null,null,null,null,null,null,null,null,null,null,null,null,null,null,null,null,null,null,null,null,null,null,null,null,null,null,null,null,null,null,null,null,null,null,null,null,null,null,null,null,null,null,null,null,null,null,null,null,null,null,null,null,null,null,null,null,null,null,null,null,null,null,null,null,null,null,null,null,null,null,null,null,null,null,null,null,null,null,null,null,null,null,null,null,null,null,null,null,null,null,null,null,null,null,null,null,null,null,null,null,null,null,null,null,null,null,null,null,null,null,null,null,null,null,null,null,null,null,null,null,null,null,null,null,null,null,null,null,null,null,null,null,null,null,null,null,null,null,null,null,null,null,null,null,null,null,null,null,null,null,null,null,null,null,null,null,null,null,null,null,null,null,null,null,null,null,null,null,null,null,null,null,null,null,null,null,null,null,null,null,null,null,null,null,null,null,null,null,null,null,null,null,null,null,null,null,null,null,null,null,null,null,null,null,null,null,null,null,null,null,null,null,null,null,null,null,null,null,null,null,null,null,null,null,null,null,null,null,null,null,null,null,"Demonstrated evidence of approved and disseminated (at both national and regional level) SBCC Strategy"]

{"sheet":"BK-Financing","index":13,"n_rows":4,"n_cols":572,"rows_kept":4,"cut":false,"hidden":true,"merged":[[0,21,0,24],[2,0,3,0],[3,1,3,2],[0,0,1,0],[0,1,1,2],[0,3,0,5],[0,6,0,10],[0,11,0,15],[0,16,0,20]]}
["Key Result","Key Performance Indicator",null,2018,null,null,2019,null,null,null,null,2020,null,null,null,null,2021,null,null,null,null,2022]
[null,null,null,"Jul-Sep","Oct-Dec","Target","Jan-Mar","Apr-Jun","Jul-Sep","Oct-Dec","Target","Jan-Mar","Apr-Jun","Jul-Sep","Oct-Dec","Target","Jan-Mar","Apr-Jun","Jul-Sep","Oct-Dec","Target","Jan-Mar","Apr-Jun","Jul-Sep","Target"]
["Government funding allocated for FP is increased.","Condition Status:","NO DATA"]
[null,"% of government funding allocated for FP",null,null,null,0.15,null,null,null,null,0.2,null,null,null,null,0.25,null,null,null,null,0.3,null,null,null,0.35,null,null,null,null,null,null,null,null,null,null,null,null,null,null,null,null,null,null,null,null,null,null,null,null,null,null,null,null,null,null,null,null,null,null,null,null,null,null,null,null,null,null,null,null,null,null,null,null,null,null,null,null,null,null,null,null,null,null,null,null,null,null,null,null,null,null,null,null,null,null,null,null,null,null,null,null,null,null,null,null,null,null,null,null,null,null,null,null,null,null,null,null,null,null,null,null,null,null,null,null,null,null,null,null,null,null,null,null,null,null,null,null,null,null,null,null,null,null,null,null,null,null,null,null,null,null,null,null,null,null,null,null,null,null,null,null,null,null,null,null,null,null,null,null,null,null,null,null,null,null,null,null,null,null,null,null,null,null,null,null,null,null,null,null,null,null,null,null,null,null,null,null,null,null,null,null,null,null,null,null,null,null,null,null,null,null,null,null,null,null,null,null,null,null,null,null,null,null,null,null,null,null,null,null,null,null,null,null,null,null,null,null,null,null,null,null,null,null,null,null,null,null,null,null,null,null,null,null,null,null,null,null,null,null,null,null,null,null,null,null,null,null,null,null,null,null,null,null,null,null,null,null,null,null,null,null,null,null,null,null,null,null,null,null,null,null,null,null,null,null,null,null,null,null,null,null,null,null,null,null,null,null,null,null,null,null,null,null,null,null,null,null,null,null,null,null,null,null,null,null,null,null,null,null,null,null,null,null,null,null,null,null,null,null,null,null,null,null,null,null,null,null,null,null,null,null,null,null,null,null,null,null,null,null,null,null,null,null,null,null,null,null,null,null,null,null,null,null,null,null,null,null,null,null,null,null,null,null,null,null,null,null,null,null,null,null,null,null,null,null,null,null,null,null,null,null,null,null,null,null,null,null,null,null,null,null,null,null,null,null,null,null,null,null,null,null,null,null,null,null,null,null,null,null,null,null,null,null,null,null,null,null,null,null,null,null,null,null,null,null,null,null,null,null,null,null,null,null,null,null,null,null,null,null,null,null,null,null,null,null,null,null,null,null,null,null,null,null,null,null,null,null,null,null,null,null,null,null,null,null,null,null,null,null,null,null,null,null,null,null,null,null,null,null,null,null,null,null,null,null,null,null,null,null,null,null,null,null,null,null,null,null,null,null,null,null,null,null,null,null,null,null,null,null,null,null,null,null,null,null,null,null,null,null,null,null,null,null,null,null,null,null,null,null,null,null,null,null,null,null,null,null,null,null,null,null,null,null,null,null,null,null,null,null,null,null,"% of government funding allocated for FP"]

{"sheet":"BK-SupervisionMonitoringandCo","index":14,"n_rows":4,"n_cols":572,"rows_kept":4,"cut":false,"hidden":true,"merged":[[0,21,0,24],[2,0,3,0],[3,1,3,2],[0,0,1,0],[0,1,1,2],[0,3,0,5],[0,6,0,10],[0,11,0,15],[0,16,0,20]]}
["Key Result","Key Performance Indicator",null,2018,null,null,2019,null,null,null,null,2020,null,null,null,null,2021,null,null,null,null,2022]
[null,null,null,"Jul-Sep","Oct-Dec","Target","Jan-Mar","Apr-Jun","Jul-Sep","Oct-Dec","Target","Jan-Mar","Apr-Jun","Jul-Sep","Oct-Dec","Target","Jan-Mar","Apr-Jun","Jul-Sep","Oct-Dec","Target","Jan-Mar","Apr-Jun","Jul-Sep","Target"]
["Capacity for FP programming and coordination is strengthened throughout all levels in the country.","Condition Status:","NO DATA"]
[null,"% of districts/counties who have a qualified FP Program Coordinator",null,null,null,0.1,null,null,null,null,0.12,null,null,null,null,0.14000000000000001,null,null,null,null,0.16,null,null,null,0.18,null,null,null,null,null,null,null,null,null,null,null,null,null,null,null,null,null,null,null,null,null,null,null,null,null,null,null,null,null,null,null,null,null,null,null,null,null,null,null,null,null,null,null,null,null,null,null,null,null,null,null,null,null,null,null,null,null,null,null,null,null,null,null,null,null,null,null,null,null,null,null,null,null,null,null,null,null,null,null,null,null,null,null,null,null,null,null,null,null,null,null,null,null,null,null,null,null,null,null,null,null,null,null,null,null,null,null,null,null,null,null,null,null,null,null,null,null,null,null,null,null,null,null,null,null,null,null,null,null,null,null,null,null,null,null,null,null,null,null,null,null,null,null,null,null,null,null,null,null,null,null,null,null,null,null,null,null,null,null,null,null,null,null,null,null,null,null,null,null,null,null,null,null,null,null,null,null,null,null,null,null,null,null,null,null,null,null,null,null,null,null,null,null,null,null,null,null,null,null,null,null,null,null,null,null,null,null,null,null,null,null,null,null,null,null,null,null,null,null,null,null,null,null,null,null,null,null,null,null,null,null,null,null,null,null,null,null,null,null,null,null,null,null,null,null,null,null,null,null,null,null,null,null,null,null,null,null,null,null,null,null,null,null,null,null,null,null,null,null,null,null,null,null,null,null,null,null,null,null,null,null,null,null,null,null,null,null,null,null,null,null,null,null,null,null,null,null,null,null,null,null,null,null,null,null,null,null,null,null,null,null,null,null,null,null,null,null,null,null,null,null,null,null,null,null,null,null,null,null,null,null,null,null,null,null,null,null,null,null,null,null,null,null,null,null,null,null,null,null,null,null,null,null,null,null,null,null,null,null,null,null,null,null,null,null,null,null,null,null,null,null,null,null,null,null,null,null,null,null,null,null,null,null,null,null,null,null,null,null,null,null,null,null,null,null,null,null,null,null,null,null,null,null,null,null,null,null,null,null,null,null,null,null,null,null,null,null,null,null,null,null,null,null,null,null,null,null,null,null,null,null,null,null,null,null,null,null,null,null,null,null,null,null,null,null,null,null,null,null,null,null,null,null,null,null,null,null,null,null,null,null,null,null,null,null,null,null,null,null,null,null,null,null,null,null,null,null,null,null,null,null,null,null,null,null,null,null,null,null,null,null,null,null,null,null,null,null,null,null,null,null,null,null,null,null,null,null,null,null,null,null,null,null,null,null,null,null,null,null,null,null,null,null,null,null,null,null,null,null,null,null,null,null,null,null,null,null,null,null,null,null,null,null,null,null,null,"% of districts/counties who have a qualified FP Program Coordinator"]

{"sheet":"BK-Settings-Targets","index":15,"n_rows":23,"n_cols":52,"rows_kept":23,"cut":false,"hidden":true,"merged":[[3,7,3,11],[3,0,4,0],[3,1,4,1],[3,2,4,2],[3,3,4,3],[3,4,4,4],[3,5,4,5]]}
["Step 1: Fill in required information (green cells): key performance indicators (KPI), indicator weighting, and annual targets."]
["Step 2: Fill in optional information (yellow cells): indicator definition, activities, and data sources."]
["Step 3: Press the “Update KPIs” button after completing the fields in this sheet."]
["Key Result Category","Key Result","KPI","Indicator - Definition","Activities","Data Source",null,"Target"]
[null,null,null,null,null,null,"Indicator Weighting",2018,2019,2020,2021,2022]
["Beneficiary","Women of reproductive age are mor knowledgeable about FP options.","% of women of reproductive age who know at least 3 options for FP methods",null,null,null,1,0.5,0.6,0.7,0.8,0.9,null,null,null,null,null,null,null,null,null,null,null,null,null,null,null,null,null,null,null,null,null,null,null,null,null,null,null,null,null,null,null,null,null,null,null,null,null,null,null,"Beneficiary"]
["Beneficiary","Women of reproductive age can better access affordable FP methods at local health facilities. ","% of women of reproductive age who are aware of legitimate and respectable health facilities in their community that provide comprehensive FP services",null,null,null,0.5,0.5,0.6,0.7,0.8,0.9,null,null,null,null,null,null,null,null,null,null,null,null,null,null,null,null,null,null,null,null,null,null,null,null,null,null,null,null,null,null,null,null,null,null,null,null,null,null,null,"Beneficiary"]
["Beneficiary",null,"% of women of reproductive age who live in proximity to a health facility",null,null,null,0.5,0.25,0.3,0.35,0.4,0.45,null,null,null,null,null,null,null,null,null,null,null,null,null,null,null,null,null,null,null,null,null,null,null,null,null,null,null,null,null,null,null,null,null,null,null,null,null,null,null,"Beneficiary"]
["Beneficiary","Youth are more knowledgeable about FP options.","% of youth who know at least 3 options for FP methods",null,null,null,1,0.4,0.5,0.6,0.7,0.8,null,null,null,null,null,null,null,null,null,null,null,null,null,null,null,null,null,null,null,null,null,null,null,null,null,null,null,null,null,null,null,null,null,null,null,null,null,null,null,"Beneficiary"]
["Beneficiary","Men demonstrate acceptance of FP use of wives or partners.","% of men who stated that FP use is an option that they would consider with their wife or partner",null,null,null,1,0.5,0.6,0.7,0.8,0.9,null,null,null,null,null,null,null,null,null,null,null,null,null,null,null,null,null,null,null,null,null,null,null,null,null,null,null,null,null,null,null,null,null,null,null,null,null,null,null,"Beneficiary"]
["Program Processes-Demand Creation","Communities are able to access accurate and quality FP-related information.","% of the population with reach to FP messages",null,null,null,1,0.45,0.55000000000000004,0.65,0.75,0.85,null,null,null,null,null,null,null,null,null,null,null,null,null,null,null,null,null,null,null,null,null,null,null,null,null,null,null,null,null,null,null,null,null,null,null,null,null,null,null,"Program Processes"]
["Program Processes-Service Delivery","The number of health facilities (including public and private) which provide quality FP services and counselling is increased.","# of facilities providing comprehensive FP services",null,null,null,0.5,30000,40000,50000,60000,70000,null,null,null,null,null,null,null,null,null,null,null,null,null,null,null,null,null,null,null,null,null,null,null,null,null,null,null,null,null,null,null,null,null,null,null,null,null,null,null,"Program Processes"]
["Program Processes-Service Delivery",null,"# of facilities with a sufficient amount of trained staff who can provide comprehensive FP services including LARCs ",null,null,null,0.25,25000,35000,45000,55000,65000,null,null,null,null,null,null,null,null,null,null,null,null,null,null,null,null,null,null,null,null,null,null,null,null,null,null,null,null,null,null,null,null,null,null,null,null,null,null,null,"Program Processes"]
["Program Processes-Service Delivery",null,"# of facilities with a sufficient amount of staff trained on counselling youth, women of reproductive age, and men about FP options",null,null,null,0.25,15000,20000,25000,30000,35000,null,null,null,null,null,null,null,null,null,null,null,null,null,null,null,null,null,null,null,null,null,null,null,null,null,null,null,null,null,null,null,null,null,null,null,null,null,null,null,"Program Processes"]
["Program Processes-Service Delivery","The number of facilities providing high-quality youth FP services is increased.","# of facilities that provide youth-friendly health services per district",null,null,null,1,1000,2000,3000,4000,5000,null,null,null,null,null,null,null,null,null,null,null,null,null,null,null,null,null,null,null,null,null,null,null,null,null,null,null,null,null,null,null,null,null,null,null,null,null,null,null,"Program Processes"]
["Program Processes-Contraceptive Security","Forecasting, procurement, and logistics processes are strengthened at each level of the country's health care system.","% of districts/counties reporting timely and accurate forecasting data",null,null,null,0.5,0.3,0.4,0.5,0.6,0.7,null,null,null,null,null,null,null,null,null,null,null,null,null,null,null,null,null,null,null,null,null,null,null,null,null,null,null,null,null,null,null,null,null,null,null,null,null,null,null,"Program Processes"]
["Program Processes-Service Delivery",null,"% of districts/counties that have trained staff on FP supply chain management",null,null,null,0.5,0.4,0.45,0.5,0.55000000000000004,0.6,null,null,null,null,null,null,null,null,null,null,null,null,null,null,null,null,null,null,null,null,null,null,null,null,null,null,null,null,null,null,null,null,null,null,null,null,null,null,null,"Program Processes"]
["Program Processes-Policy and Enabling Environment","The number of opinion leaders within the national and local governments who recognize and act on the importance of FP is increased.","# of national and local government level FP advocates or champions",null,null,null,1,12,14,16,18,20,null,null,null,null,null,null,null,null,null,null,null,null,null,null,null,null,null,null,null,null,null,null,null,null,null,null,null,null,null,null,null,null,null,null,null,null,null,null,null,"Program Processes"]
["Financing","Government funding allocated for FP is increased.","% of government funding allocated for FP",null,null,null,1,0.15,0.2,0.25,0.3,0.35,null,null,null,null,null,null,null,null,null,null,null,null,null,null,null,null,null,null,null,null,null,null,null,null,null,null,null,null,null,null,null,null,null,null,null,null,null,null,null,"Financing"]
["Supervision, Monitoring, and Coordination","Capacity for FP programming and coordination is strengthened throughout all levels in the country.","% of districts/counties who have a qualified FP Program Coordinator",null,null,null,1,0.1,0.12,0.14000000000000001,0.16,0.18,null,null,null,null,null,null,null,null,null,null,null,null,null,null,null,null,null,null,null,null,null,null,null,null,null,null,null,null,null,null,null,null,null,null,null,null,null,null,null,"Supervision, Monitoring, and Coordination"]
["Program Processes-Demand Creation","FP promotion messaging is shared through new media platforms.","Demonstrated evidence of social media platform established","Qualitative indicator - Yes = 1 or 100%; No = 0 or 0%",null,null,0.5,0,0,0,1,0,null,null,null,null,null,null,null,null,null,null,null,null,null,null,null,null,null,null,null,null,null,null,null,null,null,null,null,null,null,null,null,null,null,null,null,null,null,null,null,"Program Processes"]
["Program Processes-Demand Creation",null,"Demonstrated evidence of mHealth platform established","Percent completion ranges of the activities are as follows: \n1) Pilot test 0 - 49.99%\n2) Increased demand 50 - 74.99%\n3) Demonstrated availability of mHealth app 75 - 100%","1) Pilot test FP messages through the mHealth app\n2) Demand for the mHealth app on FP is increased by community dissemination\n3) Demonstrated evidence of the mHealth FP app available at scale",null,0.5,0.5,0.75,1,0,0,null,null,null,null,null,null,null,null,null,null,null,null,null,null,null,null,null,null,null,null,null,null,null,null,null,null,null,null,null,null,null,null,null,null,null,null,null,null,null,"Program Processes"]
["Program Processes-Demand Creation","SBCC strategy is developed and disseminated.","Demonstrated evidence of approved and disseminated (at both national and regional level) SBCC Strategy","Percent completion ranges of the activities are as follows:\n1) SBCC draft is developed 0 - 24.99%\n2) SBCC final draft completed 25 - 49.99%\n3) SBCC final draft approved 50 - 74.99%\n4) Final, approved SBCC strategy disseminated 75 - 100%","1) Develop SBCC draft\n2) Finalize the SBCC strategy\n3) Get approval of the final SBCC strategy\n4) Disseminate the SBCC strategy",null,1,1,0,0,0,0,null,null,null,null,null,null,null,null,null,null,null,null,null,null,null,null,null,null,null,null,null,null,null,null,null,null,null,null,null,null,null,null,null,null,null,null,null,null,null,"Program Processes"]

{"sheet":"RES-Beneficiary","index":16,"n_rows":7,"n_cols":572,"rows_kept":7,"cut":false,"hidden":false,"merged":[[0,23,0,27],[2,0,4,0],[3,1,3,2],[4,1,4,2],[5,0,8,0],[6,1,6,2],[7,1,7,2],[8,1,8,2],[0,0,1,0],[0,1,1,2],[0,3,0,7],[0,8,0,12],[0,13,0,17],[0,18,0,22]]}
["Key Result","Key Performance Indicator",null,2018,null,null,null,null,2019,null,null,null,null,2020,null,null,null,null,2021,null,null,null,null,2022]
[null,null,null,"Jan-Mar","Apr-Jun","Jul-Sep","Oct-Dec","Target","Jan-Mar","Apr-Jun","Jul-Sep","Oct-Dec","Target","Jan-Mar","Apr-Jun","Jul-Sep","Oct-Dec","Target","Jan-Mar","Apr-Jun","Jul-Sep","Oct-Dec","Target","Jan-Mar","Apr-Jun","Jul-Sep","Oct-Dec","Target"]
["Increase demand for and access to high-quality FP information and services","Condition Status:","NO DATA"]
[null,"Annual percentage change in mCPR among all women of reproductive age",null,null,null,null,null,0.47699999999999998,null,null,null,null,0.48799999999999999,null,null,null,null,0.499,null,null,null,null,0.51,null,null,null,null,0.52100000000000002,null,null,null,null,null,null,null,null,null,null,null,null,null,null,null,null,null,null,null,null,null,null,null,null,null,null,null,null,null,null,null,null,null,null,null,null,null,null,null,null,null,null,null,null,null,null,null,null,null,null,null,null,null,null,null,null,null,null,null,null,null,null,null,null,null,null,null,null,null,null,null,null,null,null,null,null,null,null,null,null,null,null,null,null,null,null,null,null,null,null,null,null,null,null,null,null,null,null,null,null,null,null,null,null,null,null,null,null,null,null,null,null,null,null,null,null,null,null,null,null,null,null,null,null,null,null,null,null,null,null,null,null,null,null,null,null,null,null,null,null,null,null,null,null,null,null,null,null,null,null,null,null,null,null,null,null,null,null,null,null,null,null,null,null,null,null,null,null,null,null,null,null,null,null,null,null,null,null,null,null,null,null,null,null,null,null,null,null,null,null,null,null,null,null,null,null,null,null,null,null,null,null,null,null,null,null,null,null,null,null,null,null,null,null,null,null,null,null,null,null,null,null,null,null,null,null,null,null,null,null,null,null,null,null,null,null,null,null,null,null,null,null,null,null,null,null,null,null,null,null,null,null,null,null,null,null,null,null,null,null,null,null,null,null,null,null,null,null,null,null,null,null,null,null,null,null,null,null,null,null,null,null,null,null,null,null,null,null,null,null,null,null,null,null,null,null,null,null,null,null,null,null,null,null,null,null,null,null,null,null,null,null,null,null,null,null,null,null,null,null,null,null,null,null,null,null,null,null,null,null,null,null,null,null,null,null,null,null,null,null,null,null,null,null,null,null,null,null,null,null,null,null,null,null,null,null,null,null,null,null,null,null,null,null,null,null,null,null,null,null,null,null,null,null,null,null,null,null,null,null,null,null,null,null,null,null,null,null,null,null,null,null,null,null,null,null,null,null,null,null,null,null,null,null,null,null,null,null,null,null,null,null,null,null,null,null,null,null,null,null,null,null,null,null,null,null,null,null,null,null,null,null,null,null,null,null,null,null,null,null,null,null,null,null,null,null,null,null,null,null,null,null,null,null,null,null,null,null,null,null,null,null,null,null,null,null,null,null,null,null,null,null,null,null,null,null,null,null,null,null,null,null,null,null,null,null,null,null,null,null,null,null,null,null,null,null,null,null,null,null,null,null,null,null,null,null,null,null,null,null,null,null,null,null,null,null,null,null,null,null,null,null,null,null,null,null,null,null,null,null,null,null,null,null,null,null,null,null,null,null,null,null,null,"Annual percentage change in mCPR among all women of reproductive age"]
[null,"Annual increase in the couple years of protection",null,null,null,null,null,1141154.3,null,null,null,null,1209644,null,null,null,null,1282762.8999999999,null,null,null,null,1357504,null,null,null,null,1437623,null,null,null,null,null,null,null,null,null,null,null,null,null,null,null,null,null,null,null,null,null,null,null,null,null,null,null,null,null,null,null,null,null,null,null,null,null,null,null,null,null,null,null,null,null,null,null,null,null,null,null,null,null,null,null,null,null,null,null,null,null,null,null,null,null,null,null,null,null,null,null,null,null,null,null,null,null,null,null,null,null,null,null,null,null,null,null,null,null,null,null,null,null,null,null,null,null,null,null,null,null,null,null,null,null,null,null,null,null,null,null,null,null,null,null,null,null,null,null,null,null,null,null,null,null,null,null,null,null,null,null,null,null,null,null,null,null,null,null,null,null,null,null,null,null,null,null,null,null,null,null,null,null,null,null,null,null,null,null,null,null,null,null,null,null,null,null,null,null,null,null,null,null,null,null,null,null,null,null,null,null,null,null,null,null,null,null,null,null,null,null,null,null,null,null,null,null,null,null,null,null,null,null,null,null,null,null,null,null,null,null,null,null,null,null,null,null,null,null,null,null,null,null,null,null,null,null,null,null,null,null,null,null,null,null,null,null,null,null,null,null,null,null,null,null,null,null,null,null,null,null,null,null,null,null,null,null,null,null,null,null,null,null,null,null,null,null,null,null,null,null,null,null,null,null,null,null,null,null,null,null,null,null,null,null,null,null,null,null,null,null,null,null,null,null,null,null,null,null,null,null,null,null,null,null,null,null,null,null,null,null,null,null,null,null,null,null,null,null,null,null,null,null,null,null,null,null,null,null,null,null,null,null,null,null,null,null,null,null,null,null,null,null,null,null,null,null,null,null,null,null,null,null,null,null,null,null,null,null,null,null,null,null,null,null,null,null,null,null,null,null,null,null,null,null,null,null,null,null,null,null,null,null,null,null,null,null,null,null,null,null,null,null,null,null,null,null,null,null,null,null,null,null,null,null,null,null,null,null,null,null,null,null,null,null,null,null,null,null,null,null,null,null,null,null,null,null,null,null,null,null,null,null,null,null,null,null,null,null,null,null,null,null,null,null,null,null,null,null,null,null,null,null,null,null,null,null,null,null,null,null,null,null,null,null,null,null,null,null,null,null,null,null,null,null,null,null,null,null,null,null,null,null,null,null,null,null,null,null,null,null,null,null,null,null,null,null,null,null,null,null,null,null,null,null,null,null,null,null,null,null,null,null,null,null,null,null,null,null,null,null,null,null,null,null,null,null,null,null,null,null,null,null,null,null,null,null,null,null,null,null,null,null,"Annual increase in the couple years of protection"]
["Priority 2: Expand youth access to accurate and actionable information and family planning services, and promote youth rights to make their own fertility choices","Condition Status:","NO DATA"]
[null,"Percentage of youth (10-24) accessing YFHS",null,null,null,null,null,0.51,null,null,null,null,0.56000000000000005,null,null,null,null,0.61,null,null,null,null,0.66,null,null,null,null,0.69,null,null,null,null,null,null,null,null,null,null,null,null,null,null,null,null,null,null,null,null,null,null,null,null,null,null,null,null,null,null,null,null,null,null,null,null,null,null,null,null,null,null,null,null,null,null,null,null,null,null,null,null,null,null,null,null,null,null,null,null,null,null,null,null,null,null,null,null,null,null,null,null,null,null,null,null,null,null,null,null,null,null,null,null,null,null,null,null,null,null,null,null,null,null,null,null,null,null,null,null,null,null,null,null,null,null,null,null,null,null,null,null,null,null,null,null,null,null,null,null,null,null,null,null,null,null,null,null,null,null,null,null,null,null,null,null,null,null,null,null,null,null,null,null,null,null,null,null,null,null,null,null,null,null,null,null,null,null,null,null,null,null,null,null,null,null,null,null,null,null,null,null,null,null,null,null,null,null,null,null,null,null,null,null,null,null,null,null,null,null,null,null,null,null,null,null,null,null,null,null,null,null,null,null,null,null,null,null,null,null,null,null,null,null,null,null,null,null,null,null,null,null,null,null,null,null,null,null,null,null,null,null,null,null,null,null,null,null,null,null,null,null,null,null,null,null,null,null,null,null,null,null,null,null,null,null,null,null,null,null,null,null,null,null,null,null,null,null,null,null,null,null,null,null,null,null,null,null,null,null,null,null,null,null,null,null,null,null,null,null,null,null,null,null,null,null,null,null,null,null,null,null,null,null,null,null,null,null,null,null,null,null,null,null,null,null,null,null,null,null,null,null,null,null,null,null,null,null,null,null,null,null,null,null,null,null,null,null,null,null,null,null,null,null,null,null,null,null,null,null,null,null,null,null,null,null,null,null,null,null,null,null,null,null,null,null,null,null,null,null,null,null,null,null,null,null,null,null,null,null,null,null,null,null,null,null,null,null,null,null,null,null,null,null,null,null,null,null,null,null,null,null,null,null,null,null,null,null,null,null,null,null,null,null,null,null,null,null,null,null,null,null,null,null,null,null,null,null,null,null,null,null,null,null,null,null,null,null,null,null,null,null,null,null,null,null,null,null,null,null,null,null,null,null,null,null,null,null,null,null,null,null,null,null,null,null,null,null,null,null,null,null,null,null,null,null,null,null,null,null,null,null,null,null,null,null,null,null,null,null,null,null,null,null,null,null,null,null,null,null,null,null,null,null,null,null,null,null,null,null,null,null,null,null,null,null,null,null,null,null,null,null,null,null,null,null,null,null,null,null,null,null,null,null,null,null,null,null,null,null,null,null,null,"Percentage of youth (10-24) accessing YFHS"]

{"sheet":"RES-ProgramProcesses","index":17,"n_rows":13,"n_cols":28,"rows_kept":13,"cut":false,"hidden":false,"merged":[[9,1,9,2],[10,0,11,0],[11,1,11,2],[12,0,13,0],[13,1,13,2],[7,0,9,0],[8,1,8,2],[0,23,0,27],[2,0,3,0],[3,1,3,2],[4,0,6,0],[5,1,5,2],[6,1,6,2],[0,0,1,0],[0,1,1,2],[0,3,0,7],[0,8,0,12],[0,13,0,17],[0,18,0,22]]}
["Key Result","Key Performance Indicator",null,2018,null,null,null,null,2019,null,null,null,null,2020,null,null,null,null,2021,null,null,null,null,2022]
[null,null,null,"Jan-Mar","Apr-Jun","Jul-Sep","Oct-Dec","Target","Jan-Mar","Apr-Jun","Jul-Sep","Oct-Dec","Target","Jan-Mar","Apr-Jun","Jul-Sep","Oct-Dec","Target","Jan-Mar","Apr-Jun","Jul-Sep","Oct-Dec","Target","Jan-Mar","Apr-Jun","Jul-Sep","Oct-Dec","Target"]
["Demand Creation : Priority 1: Improve the ability of individuals within the population as a whole, as well as specific groups (e.g., adolescents, rural populations, urban poor) to achieve their fertility desires by providing accurate information about sexual and reproductive health, information on how fertility is linked to general health and well-being, and where and how to access desired services","Condition Status:","NO DATA"]
[]
["Service Delivery : Priority 3: Ensure new and existing health care workers receive adquate practical training in the full FP method mix, and empower community health workers and frontline workers to provide counselling and referral services, as well as short-term methods","Condition Status:","NO DATA"]
[]
[]
["Policy and Enabling Environment : Priority 4: Promote multisectoral coordination at the national and district levels, and integrate FP policy, information, and services across sectors","Condition Status:","NO DATA"]
[]
[]
["Contraceptive Security : Priority 5: Ensure commodity availability trhough strengthening logistics management systems and distribution of FP commodities","Condition Status:","NO DATA"]
[]
["Policy and Enabling Environment : Priority 6: Increase sustainability of family planning through government commitment, integration of the private sector, and diversification of funding sources for FP activities and commodities","Condition Status:","NO DATA"]

{"sheet":"Settings-Global","index":18,"n_rows":36,"n_cols":21,"rows_kept":36,"cut":false,"hidden":false,"merged":[[20,5,20,6],[18,4,18,5],[13,4,13,5],[14,4,14,5],[15,4,15,5],[4,1,4,2],[5,1,5,2],[6,1,6,2],[7,1,7,2],[8,1,8,2],[9,1,9,2],[10,1,10,2],[10,4,10,5],[11,4,11,5],[12,4,12,5],[11,1,11,2],[12,1,12,2],[9,4,9,5],[4,4,4,5],[5,4,5,5],[9,7,9,8],[10,7,10,8],[6,4,6,5],[7,4,7,5],[8,4,8,5],[11,7,11,8],[4,7,4,8],[5,7,5,8],[6,7,6,8],[7,7,7,8],[8,7,8,8],[30,1,30,3],[18,7,18,8],[12,7,12,8],[13,7,13,8],[14,7,14,8],[15,7,15,8],[16,7,16,8],[17,7,17,8],[17,1,17,2],[18,1,18,2],[13,1,13,2],[14,1,14,2],[15,1,15,2],[16,1,16,2],[16,4,16,5],[17,4,17,5],[25,1,25,3],[26,1,26,3],[27,1,27,3],[28,1,28,3],[29,1,29,3],[20,1,20,3],[21,1,21,3],[22,1,22,3],[23,1,23,3],[24,1,24,3],[31,1,31,3],[32,1,32,3],[33,1,33,3],[34,1,34,3],[35,1,35,3]]}
[null,null,null,null,null,null,null,null,null,null,null,null,null,null,null,null,"Year","Quarter","Group","Colour","Indicator Target"]
["Start Year:",null,null,"End Year:",null,null,"Enabling Bodies Location at End",null,null,null,null,null,null,null,null,null,2012,"Jan-Mar",{"$f":"IF(LEN(B22)>0, B22, \"\")","v":"Beneficiary"},"EXCEEDED","Cumulative"]
["Start Quarter:",null,null,"End Quarter:",null,null,null,null,null,null,null,null,null,null,null,null,2013,"Apr-Jun","Program Processes","MET","Non-Cumulative"]
[null,null,null,null,null,null,null,null,null,null,null,null,null,null,null,null,2014,"Jul-Sep","","CLOSE TO TARGET"]
["Program Processes:","Demand Creation",null,"Enabling Bodies:","Government",null,"Beneficiary (List in Presentation Order):","Women of Reproductive Age",null,null,null,null,null,null,null,null,2015,"Oct-Dec","","NOT MET"]
[null,"Service Delivery",null,null,"Private Sector",null,null,"Youth",null,null,null,null,null,null,null,null,2016,"Year","","NONE"]
[null,"Contraceptive Security",null,null,"Donors",null,null,"Men",null,null,null,null,null,null,null,null,2017,null,""]
[null,"Policy and Enabling Environment",null,null,"Community and Traditional Leaders",null,null,null,null,null,null,null,null,null,null,null,2018,null,{"$f":"IF(LEN(B28)>0, B28, \"\")","v":""}]
[null,null,null,null,"Health Providers",null,null,null,null,null,null,null,null,null,null,null,2019,null,{"$f":"IF(LEN(B29)>0, B29, \"\")","v":""}]
[null,null,null,null,"Implementing Partners",null,null,null,null,null,null,null,null,null,null,null,2020,null,""]
[null,null,null,null,null,null,null,null,null,null,null,null,null,null,null,null,2021,null,""]
[null,null,null,null,null,null,null,null,null,null,null,null,null,null,null,null,2022,null,""]
[null,null,null,null,null,null,null,null,null,null,null,null,null,null,null,null,2023,null,""]
[null,null,null,null,null,null,null,null,null,null,null,null,null,null,null,null,2024,null,""]
[null,null,null,null,null,null,null,null,null,null,null,null,null,null,null,null,2025,null,""]
[null,null,null,null,null,null,null,null,null,null,null,null,null,null,null,null,2026]
[null,null,null,null,null,null,null,null,null,null,null,null,null,null,null,null,2027]
[null,null,null,null,null,null,null,null,null,null,null,null,null,null,null,null,2028]
[null,null,null,null,null,null,null,null,null,null,null,null,null,null,null,null,2029]
[null,null,null,null,null,null,null,null,null,null,null,null,null,null,null,null,2030]
[null,"Key Result Categories",null,null,null,"Excel Sheet Name:",null,null,null,null,null,null,null,null,null,null,2031]
[null,"Beneficiary",null,null,"*",{"$f":"LEFT(SUBSTITUTE(SUBSTITUTE(IF(B22=\"\",\"\",\"RES-\"&SUBSTITUTE(B22, \" \", \"\")),\"&\",\"\"),\",\",\"\"),30)","v":"RES-Beneficiary"},null,null,{"$f":"LEN(B22)","v":11},{"$f":"IF(LEN(B22)=0,\"\",B22)","v":"Beneficiary"},{"$f":"IF(I22>0,1,0)","v":1}]
[null,"Program Processes",null,null,"*",{"$f":"LEFT(SUBSTITUTE(SUBSTITUTE(IF(B23=\"\",\"\",\"RES-\"&SUBSTITUTE(B23, \" \", \"\")),\"&\",\"\"),\",\",\"\"),30)","v":"RES-ProgramProcesses"},null,null,{"$f":"LEN(B23)","v":17},{"$f":"IF(LEN(B23)=0,\"\",B23)","v":"Program Processes"},{"$f":"IF(I23>0,1,0)","v":1}]
[null,null,null,null,null,{"$f":"LEFT(SUBSTITUTE(SUBSTITUTE(IF(B24=\"\",\"\",\"RES-\"&SUBSTITUTE(B24, \" \", \"\")),\"&\",\"\"),\",\",\"\"),30)","v":""},null,null,0,{"$f":"IF(LEN(B24)=0,\"\",B24)","v":""},0]
[null,null,null,null,null,{"$f":"LEFT(SUBSTITUTE(SUBSTITUTE(IF(B25=\"\",\"\",\"RES-\"&SUBSTITUTE(B25, \" \", \"\")),\"&\",\"\"),\",\",\"\"),30)","v":""},null,null,0,{"$f":"IF(LEN(B25)=0,\"\",B25)","v":""},0]
[null,null,null,null,null,{"$f":"LEFT(SUBSTITUTE(SUBSTITUTE(IF(B26=\"\",\"\",\"RES-\"&SUBSTITUTE(B26, \" \", \"\")),\"&\",\"\"),\",\",\"\"),30)","v":""},null,null,0,{"$f":"IF(LEN(B26)=0,\"\",B26)","v":""},0]
[null,null,null,null,null,"",null,null,0,{"$f":"IF(LEN(B27)=0,\"\",B27)","v":""},0]
[null,null,null,null,null,"",null,null,0,"",0]
[null,null,null,null,null,"",null,null,0,"",0]
[null,null,null,null,null,"",null,null,0,"",0]
[null,null,null,null,null,"",null,null,0,"",0]
[null,null,null,null,null,"",null,null,0,"",0]
[null,null,null,null,null,"",null,null,0,"",0]
[null,null,null,null,null,"",null,null,0,"",0]
[null,null,null,null,null,"",null,null,0,"",0]
[null,null,null,null,null,null,null,null,null,null,{"$f":"SUM(K22:K35)","v":2}]

{"sheet":"Settings-Results","index":19,"n_rows":16,"n_cols":5,"rows_kept":16,"cut":false,"hidden":false,"merged":[[0,0,1,3],[0,4,1,4]]}
["Step 1: Fill in sheet with the following information: key results, the number of key performance indicators per result, key result categories, program processes, and beneficiary name.",null,null,null,"Step 2: Press the \"Setup Result Sheets\" button after completing the required fields."]
[]
["Key Results","# of KPIs","Key Result Categories","Program Process (Applicable for Program Process only)","Beneficiary Name (Applicable for Beneficiary Category only)"]
[null,null,null,null,"Women of Reproductive Age"]
[null,null,null,"Demand Creation","Women of Reproductive Age"]
[null,null,null,null,"Youth"]
[null,null,null,"Service Delivery","Men"]
[null,null,null,"Policy and Enabling Environment"]
[null,null,null,"Contraceptive Security"]
[null,null,null,"Policy and Enabling Environment"]
[null,null,null,"Contraceptive Security"]
[null,null,null,"Policy and Enabling Environment"]
[]
[]
[null,null,null,"Demand Creation"]
[null,null,null,"Demand Creation"]

{"sheet":"Settings-Targets","index":20,"n_rows":17,"n_cols":52,"rows_kept":17,"cut":false,"hidden":false,"merged":[[3,7,3,11],[3,0,4,0],[3,1,4,1],[3,2,4,2],[3,3,4,3],[3,4,4,4],[3,5,4,5]]}
["Step 1: Fill in required information (green cells): key performance indicators (KPI), indicator weighting, and annual targets."]
["Step 2: Fill in optional information (yellow cells): indicator definition, activities, and data sources."]
["Step 3: Press the “Update KPIs” button after completing the fields in this sheet."]
["Key Result Category","Key Result","KPI","Indicator - Definition","Activities","Data Source",null,"Target"]
[null,null,null,null,null,null,"Indicator Weighting",2018,2019,2020,2021,2022]
["Beneficiary","Increase demand for and access to high-quality FP information and services",null,null,null,null,null,null,null,null,null,null,null,null,null,null,null,null,null,null,null,null,null,null,null,null,null,null,null,null,null,null,null,null,null,null,null,null,null,null,null,null,null,null,null,null,null,null,null,null,null,"Beneficiary"]
["Beneficiary",null,null,null,null,null,null,null,null,null,null,null,null,null,null,null,null,null,null,null,null,null,null,null,null,null,null,null,null,null,null,null,null,null,null,null,null,null,null,null,null,null,null,null,null,null,null,null,null,null,null,"Beneficiary"]
["Program Processes-Demand Creation","Priority 1: Improve the ability of individuals within the population as a whole, as well as specific groups (e.g., adolescents, rural populations, urban poor) to achieve their fertility desires by providing accurate information about sexual and reproductive health, information on how fertility is linked to general health and well-being, and where and how to access desired services",null,null,null,null,null,null,null,null,null,null,null,null,null,null,null,null,null,null,null,null,null,null,null,null,null,null,null,null,null,null,null,null,null,null,null,null,null,null,null,null,null,null,null,null,null,null,null,null,null,"Program Processes"]
["Beneficiary","Priority 2: Expand youth access to accurate and actionable information and family planning services, and promote youth rights to make their own fertility choices",null,null,null,null,null,null,null,null,null,null,null,null,null,null,null,null,null,null,null,null,null,null,null,null,null,null,null,null,null,null,null,null,null,null,null,null,null,null,null,null,null,null,null,null,null,null,null,null,null,"Beneficiary"]
["Program Processes-Demand Creation",null,null,null,null,null,null,null,null,null,null,null,null,null,null,null,null,null,null,null,null,null,null,null,null,null,null,null,null,null,null,null,null,null,null,null,null,null,null,null,null,null,null,null,null,null,null,null,null,null,null,"Program Processes"]
["Program Processes-Demand Creation",null,null,null,null,null,null,null,null,null,null,null,null,null,null,null,null,null,null,null,null,null,null,null,null,null,null,null,null,null,null,null,null,null,null,null,null,null,null,null,null,null,null,null,null,null,null,null,null,null,null,"Program Processes"]
["Program Processes-Service Delivery","Priority 3: Ensure new and existing health care workers receive adquate practical training in the full FP method mix, and empower community health workers and frontline workers to provide counselling and referral services, as well as short-term methods",null,null,null,null,null,null,null,null,null,null,null,null,null,null,null,null,null,null,null,null,null,null,null,null,null,null,null,null,null,null,null,null,null,null,null,null,null,null,null,null,null,null,null,null,null,null,null,null,null,"Program Processes"]
["Program Processes-Service Delivery",null,null,null,null,null,null,null,null,null,null,null,null,null,null,null,null,null,null,null,null,null,null,null,null,null,null,null,null,null,null,null,null,null,null,null,null,null,null,null,null,null,null,null,null,null,null,null,null,null,null,"Program Processes"]
["Program Processes-Policy and Enabling Environment","Priority 4: Promote multisectoral coordination at the national and district levels, and integrate FP policy, information, and services across sectors",null,null,null,null,null,null,null,null,null,null,null,null,null,null,null,null,null,null,null,null,null,null,null,null,null,null,null,null,null,null,null,null,null,null,null,null,null,null,null,null,null,null,null,null,null,null,null,null,null,"Program Processes"]
["Program Processes-Policy and Enabling Environment",null,null,null,null,null,null,null,null,null,null,null,null,null,null,null,null,null,null,null,null,null,null,null,null,null,null,null,null,null,null,null,null,null,null,null,null,null,null,null,null,null,null,null,null,null,null,null,null,null,null,"Program Processes"]
["Program Processes-Contraceptive Security","Priority 5: Ensure commodity availability trhough strengthening logistics management systems and distribution of FP commodities",null,null,null,null,null,null,null,null,null,null,null,null,null,null,null,null,null,null,null,null,null,null,null,null,null,null,null,null,null,null,null,null,null,null,null,null,null,null,null,null,null,null,null,null,null,null,null,null,null,"Program Processes"]
["Program Processes-Policy and Enabling Environment","Priority 6: Increase sustainability of family planning through government commitment, integration of the private sector, and diversification of funding sources for FP activities and commodities",null,null,null,null,null,null,null,null,null,null,null,null,null,null,null,null,null,null,null,null,null,null,null,null,null,null,null,null,null,null,null,null,null,null,null,null,null,null,null,null,null,null,null,null,null,null,null,null,null,"Program Processes"]

{"sheet":"Custom_Graph","index":21,"n_rows":7,"n_cols":6,"rows_kept":7,"cut":false,"hidden":false,"merged":[]}
["Chart Type:"]
["Period Start Year:"]
["Period Start Quarter:"]
["Period End Year:"]
["Period End Quarter:"]
["Graph Title:",null,null,null,null,{"$f":"CONCATENATE(E6)","v":""}]
["Select Key Result Category","Select Key Result","Select KPI"]

{"sheet":"cht-Testing","index":22,"n_rows":2,"n_cols":1,"rows_kept":2,"cut":false,"hidden":true,"merged":[]}
[2016]
["Jan-Mar"]

{"sheet":"cht-Sample","index":23,"n_rows":3,"n_cols":5,"rows_kept":3,"cut":false,"hidden":true,"merged":[[0,0,0,1],[0,2,0,4]]}
[2017,null,2018]
["Jul-Sep","Oct-Dec","Jan-Mar","Apr-Jun","Jul-Sep"]
[{"$f":"#REF!","v":{"$error":"#REF!"}},{"$f":"#REF!","v":{"$error":"#REF!"}},{"$f":"#REF!","v":{"$error":"#REF!"}},{"$f":"#REF!","v":{"$error":"#REF!"}},{"$f":"#REF!","v":{"$error":"#REF!"}}]

{"sheet":"cht-test","index":24,"n_rows":1,"n_cols":1,"rows_kept":1,"cut":false,"hidden":true,"merged":[]}
[2017]